Workbook

Sheet Datos
C2: Calculadora Crédito Efectivo / Consumo
C5: Por favor ingresa los siguientes datos:
C7: Fecha de desembolso | H7: 2025-10-28 | I7: (dd/mm/aaaa)
C8: Día de Pago (1-31) | H8: =+Varios!D67 -> 28
C9: Plazo (en Meses) | H9: =+Varios!G72 -> 12
H10: 0
C11: Moneda
C12: Seguro de Protección Financiera
C13: Envío de Estado de Cuenta
C14: Tipo Cliente
C15: Rango de Ingreso
C16: Tasa de Interés Efectiva Anual (En base a 360 días) | H16: =+IF(Varios!$I$33=3,VLOOKUP("Otros",Varios!$D$24:$G$60,3,FALSE),VLOOKUP(Varios!I33&Varios!O43,Varios!B24:G60,IF(Varios!C4=1,5,6),FALSE)) -> 0.72
C17: Ingrese Tasa | H17: 0.72
C18: Tasa de Interés Nominal Anual | H18: =+((1+H16)^(1/12)-1)*12 -> 0.5547658273
H19: =+(1+H18/12+H22)^12-1 -> 0.72
C20: Tipo de Seguro de Desgravamen
C21: Incluye Seguro de Desgravamen | H21: NO
C22: Tasa mensual de Seguro de Desgravamen* | H22: =+IF(H21="SI",IF(Varios!G5=1,Varios!H2,IF(Varios!G5=2,Varios!H3,Varios!H4)),0) -> 0
C23: Evaluación de Póliza Endosada | H23: =+IF(Varios!G5=2,Varios!F4,0) -> 0
C24: Envío Físico de Estado de Cuenta | G24: =+G45 -> S/. | H24: =IF(Varios!$K$5=1,VLOOKUP(Varios!C4,Varios!B2:E3,4,FALSE),0) -> 0
C25: Cuota Adicional en Julio | H25: 0
C26: Cuota Adicional en Diciembre | H26: 0
C27: Modalidad de pago (Cuotas por Año) | H27: =12+H25+H26 -> 12
C28: Ingrese Monto a solicitar | G28: =+IF(Varios!C4=1,"S/.","US$") -> S/. | H28: 1000
C29: Intereses por Cambio de Fecha | G29: =+IF(Varios!C4=1,"S/.","US$") -> S/. | H29: =IFERROR(+Cronograma!AB13,"") -> 1.541016187
C30: Seguros por Cambio de Fecha | G30: =+IF(Varios!C4=1,"S/.","US$") -> S/. | H30: =+IFERROR(Cronograma!AF13,"") -> 0
C32: =IF(Varios!K15<>1,"","Crédito con SPF") -> 
C37: =IF(Varios!K15<>1,"","Cuota con SPF") ->  | G37: =IF(Varios!K15<>1,"",IF(Varios!C4=1,"S/.","US$")) ->  | H37: =IF(Varios!K15<>1,"",Cronograma!$W$14) -> 
C38: =IF(Varios!K15<>1,"","Cuota sin SPF") ->  | G38: =IF(Varios!K15<>1,"",IF(Varios!C4=1,"S/.","US$")) ->  | H38: =IF(Varios!K15<>1,"",$H$37-Varios!$L$15) -> 
C39: =IF(Varios!K15<>1,"","Diferencia") ->  | G39: =IF(Varios!K15<>1,"",IF(Varios!C4=1,"S/.","US$")) ->  | H39: =IF(Varios!K15<>1,"",H37-H38) -> 
D41: No olvides presionar el botón para calcular la cuota
C42: Monto Fijo | G42: =+G44 -> S/. | H42: =+H47-H43-H44 -> 
C43: Administración de Póliza Endosada | G43: =+G45 -> S/. | H43: =+H23 -> 0
C44: Portes Mensuales+SPF | G44: =+G47 -> S/. | H44: =+H24+H39 -> 
C45: Cuota Mensual | G45: =+G28 -> S/. | H45: =+Cronograma!$W$14 -> 111.0061845
C47: Cuota Mensual Total | G47: =+G45 -> S/. | H47: =+H45 -> 111.0061845
C48: =+Cronograma!K5 -> Tasa de Costo Efectivo Anual (en base a 360 días): | H48: =+Cronograma!Q5 -> 0.7247222914
C52: Nota:
C53: Las cuotas son referenciales, sujetas a calificación y a la fecha de desembolso del crédito y no
C54: incluyen ITF.
C55: “Ingrese Monto a solicitar” indica el monto del “crédito renovado” donde considera intereses y
C56: capital del crédito vigente + extra de capital.
C57: “Fecha de desembolso” es la fecha de adquisición del extra/crédito renovado
C58: “Día de pago (1-31)” es el mismo día elegido del crédito vigente
C59: (*) El cliente tiene derecho a elegir la contratación del seguro ofrecido por el BCP o a contratar un seguro directamente con
C60: una aseguradora, o a través de un corredor de seguros, siempre que cumpla con las condiciones informadas por el BCP.
C61: El trámite para el endoso lo puede realizar gratuitamente en cualquier agencia BCP.
C62: Para mayor información https://www.viabcp.com/creditos/credito-efectivo/prestamo-personal-bcp

Sheet Presentación
A3: Simulación de Crédito Efectivo / Consumo
A7: Datos del Crédito
A8: Monto del Préstamo | C8: =+IF(Varios!$C$4=1,"S/.","US$") -> S/. | D8: =Cronograma!M12 -> 1000
A9: Plazo de Financiamiento (meses) | D9: =+Datos!H9 -> 12
A10: Número de Cuotas Fijas Anuales | D10: =+Datos!H27 -> 12
A11: Tasa de Interés Efectiva Anual (en base a 360 días) | D11: =+Datos!H16 -> 0.72
A12: Fecha de Desembolso | D12: =+Datos!H7 -> 2025-10-28
A13: Fecha de Pago | D13: =+CONCATENATE(DAY(Datos!H8)," ","de cada mes") -> 28 de cada mes
A14: Portes Mensuales | C14: =+IF(Varios!$C$4=1,"S/.","US$") -> S/. | D14: =+Datos!H24 -> 0
A15: Tasa de Seguro de Desgravamen | D15: =+Datos!H22 -> 0
A16: Seguro de Protección Financiera (SPF) 0.192% | D16: =+IF(Varios!$K$15=1,Varios!$K$12,Varios!$K$13) -> 0
A18: Cuota Mensual | C18: =+IF(Varios!$C$4=1,"S/.","US$") -> S/. | D18: =+Datos!H47 -> 111.0061845
A19: Tasa de Costo Efectivo Anual (base 360 días) | D19: =+Datos!H48 -> 0.7247222914
A21: Total de Intereses a Pagar | C21: =+IF(Varios!$C$4=1,"S/.","US$") -> S/. | D21: =+Cronograma!P9 -> 332.074214
A22: Total Seguro de Desgravamen | C22: =+IF(Varios!$C$4=1,"S/.","US$") -> S/. | D22: =+Cronograma!Q9 -> 0
A23: Total Envío de información periódica | C23: =+IF(Varios!$C$4=1,"S/.","US$") -> S/. | D23: =+Cronograma!T9 -> 0
A24: Total Amortización | C24: =+IF(Varios!$C$4=1,"S/.","US$") -> S/. | D24: =+Cronograma!R9 -> 1000
A25: Total Seguro de Protección Financiera | C25: =+IF(Varios!$C$4=1,"S/.","US$") -> S/. | D25: =+Cronograma!V9 -> 0
A26: Cantidad Total a Pagar | C26: =+IF(Varios!$C$4=1,"S/.","US$") -> S/. | D26: =+Cronograma!Q6 -> 1332.074214
A28: NOTA: Las cuotas son referenciales, sujetas a calificación y a la fecha de desembolso del crédito. No incluyen ITF.

Sheet Cronograma
A1: =+Datos!H10 -> 0 | B1: =+Datos!H9+1+A1 -> 13 | C1: =+((1+Datos!H19)^(0.0833333333333333)-1)*12/365 -> 0.001519906376 | D1: =+Datos!H8 -> 28 | E1: =SUM(R14:R73) -> 1000 | F1: =+E1-M12 -> 0 | G1: 111.0061845 | AH1: =+AH2-AH10 -> 8.338744351e-06
K2: Cronograma | AH2: =+M12 -> 1000
K3: NOTA: Todo crédito se encuentra sujeto a la evaluación crediticia del Banco, quien determina el monto y plazo a otorgar. Este documento ha sido emitido en base a la información proporcionada por el cliente y tiene caracter referencial.
K4: Tasa de Interés Efectiva Anual (en base a 360 días): | Q4: =+Datos!H16 -> 0.72
K5: Tasa de Costo Efectivo Anual (en base a 360 días): | Q5: =+AI11 -> 0.7247222914
K6: Cantidad Total a Pagar: | P6: =+IF(Varios!C4=1,"S/.","US$") -> S/. | Q6: =+SUM(X12:X73) -> 1332.074214
N8: Int + Seg | O8: Int + Seg | P8: Interés | Q8: Seguro Desg | R8: Amortización | S8: Cuota | T8: Envío Físico de Estado de Cuenta | U8: Evaluación de Póliza Endosada | V8: Seguro de Protección Financiera | W8: Cuota | X8: Cuota
K9: Totales a pagar | P9: =+SUM(P12:P73) -> 332.074214 | Q9: =+SUM(Q12:Q73) -> 0 | R9: 1000 | S9: 1332.074214 | T9: 0 | U9: 0 | V9: 0 | W9: 1332.074214 | X9: 1332.074214
E10: Fecha | G10: Int. Acum. | H10: Seg. | Z10: Interes x Pagar | AD10: Seguros x Pagar | AH10: =+SUM(AH13:AH73) -> 999.9999917
D11: Dia | E11: Mes | F11: Año | H11: Acum | K11: # | L11: Fecha | M11: Saldo | N11: Int + Seg | O11: Int + Seg | P11: Interés | Q11: Seguro Desg | R11: Amortización | S11: Cuota | T11: Envío Físico de Estado de Cuenta | U11: Evaluación de Póliza Endosada | V11: Seguro de Protección Financiera | W11: Cuota | X11: Cuota | Z11: Calculado | AA11: Pdte | AB11: Total a Pagar | AD11: Calculado | AE11: Pdte | AF11: Total a Pagar | AH11: 0.7378286103 | AI11: =+(1+AH11)^(360/365)-1 -> 0.7247222914
A12: 0 | B12: =IF(+MONTH(Datos!H7)=12,0,MONTH(Datos!H7)) -> 10 | D12: =DAY(Datos!H7) -> 28 | E12: =+MONTH(Datos!H7) -> 10 | F12: =YEAR(Datos!H7) -> 2025 | L12: =IF(AND(D12<10,E12<10),CONCATENATE("0",D12,"/","0",E12,"/",F12),IF(AND(D12>9,E12<10),CONCATENATE(D12,"/","0",E12,"/",F12),IF(AND(D12<10,E12>9),CONCATENATE("0",D12,"/",E12,"/",F12),IF(AND(D12>9,E12>9),CONCATENATE(D12,"/",E12,"/",F12))))) -> 28/10/2025 | M12: =Datos!H28 -> 1000
A13: =+IF(B1>0,A12+1,0) -> 1 | B13: =+IF(A13=0,0,IF(B12=12,1,B12+1)) -> 11 | D13: =+IF($D$1=31,IF(F13/4=TRUNC(F13/4),VLOOKUP(E13,Varios!$C$10:$G$21,3,FALSE),VLOOKUP(E13,Varios!$C$10:$G$21,2,FALSE)),IF($D$1>28,IF(F13/4=TRUNC(F13/4),VLOOKUP(E13,Varios!$C$10:$G$21,5,FALSE),VLOOKUP(E13,Varios!$C$10:$G$21,4,FALSE)),$D$1)) -> 28 | E13: =+IF(NOT(D12>D1),E12,IF(E12+1>12,E12+1-12,E12+1)) -> 10 | F13: =+IF(E12=E13,F12,IF(E12+1>12,F12+1,F12)) -> 2025 | G13: =+P13 -> 0 | H13: =+Q13 -> 0 | J13: =+IF(A13=0,"",A13) -> 1 | L13: =IF(J13="","",IF(AND(D13<10,E13<10),CONCATENATE("0",D13,"/","0",E13,"/",F13),IF(AND(D13>9,E13<10),CONCATENATE(D13,"/","0",E13,"/",F13),IF(AND(D13<10,E13>9),CONCATENATE("0",D13,"/",E13,"/",F13),IF(AND(D13>9,E13>9),CONCATENATE(D13,"/",E13,"/",F13)))))) -> 28/10/2025 | M13: =IF(B13=0,"",M12) -> 1000 | N13: =IF(A13=0,"",IF(AND(Datos!$H$25>0,E13=7),IF(O13<$G$1*Datos!$H$25,O13,$G$1*Datos!$H$25),IF(AND(Datos!$H$26>0,E13=12),IF(O13<$G$1*Datos!$H$26,O13,$G$1*Datos!$H$26),IF((AB13+AF13)<S13,(AB13+AF13),S13)))) -> 0 | O13: =IF(A13=0,"",IF(S13=0,0,AB13+AF13)) -> 0 | P13: =IF($A13=0,"",IF(S13=0,0,IF(AB13<=(N13-Q13),AB13,N13-Q13))) -> 0 | Q13: =IF($A13=0,"",IF(S13=0,0,IF(AF13<=N13,AF13,N13))) -> 0 | R13: =IF(B13=0,"",IF(X13=0,0,S13-N13)) -> 0 | S13: 0 | T13: =+IF(S13="","",IF(Varios!$K$5=1,IF(S13=0,0,IF(Varios!$D$4=1,Varios!$D$2,Varios!$D$3)),0)) -> 0 | U13: =+IF(S13="","",IF(S13=0,0,Varios!$F$4)) -> 0 | V13: =IF(S13="","",IF(Varios!$K$15=1,IF(S13=0,0,Datos!$H$28*Varios!$K$12),0)) -> 0 | W13: =+IF(T13="","",S13+T13+U13+V13) -> 0 | X13: =+IF(W13="","",W13) -> 0 | Z13: =IF(J13="","",Datos!$H$18/360*(L13-L12+1)*M12) -> 1.541016187 | AA13: =IF(Z13="","",AB12-P12) -> 0 | AB13: =IF(Z13="","",SUM(Z13:AA13)) -> 1.541016187 | AD13: =IF(J13="","",Datos!$H$22*12/360*(L13-L12)*M12) -> 0 | AE13: =IF(AD13="","",AF12-Q12) -> 0 | AF13: =IF(AD13="","",SUM(AD13:AE13)) -> 0 | AG13: =IF(L13="","",L13-L$12+1) -> 1 | AH13: =+W13/((1+$AH$11)^(AG13/365)) -> 0
A14: =+IF(OR(A13=$B$1,A13=0),0,A13+1) -> 2 | B14: 12 | D14: =+IF($D$1=31,IF(F14/4=TRUNC(F14/4),VLOOKUP(E14,Varios!$C$10:$G$21,3,FALSE),VLOOKUP(E14,Varios!$C$10:$G$21,2,FALSE)),IF($D$1>28,IF(F14/4=TRUNC(F14/4),VLOOKUP(E14,Varios!$C$10:$G$21,5,FALSE),VLOOKUP(E14,Varios!$C$10:$G$21,4,FALSE)),$D$1)) -> 28 | E14: =IF(L13-L12>=15,E13,IF(E13=12,1,E13+1)) -> 11 | F14: =IF(L13-L12>=15,F13,IF(E13=E14,F13,IF(E13+1>12,F13+1,F13))) -> 2025 | G14: =+IF(P14="","",G13+P14) -> 49.31251799 | H14: =+IF(Q14="","",H13+Q14) -> 0 | J14: =+IF(A14=0,"",A14) -> 2 | K14: =+IF(J14="","",J14-1) -> 1 | L14: =IF(J14="","",IF(AND(D14<10,E14<10),CONCATENATE("0",D14,"/","0",E14,"/",F14),IF(AND(D14>9,E14<10),CONCATENATE(D14,"/","0",E14,"/",F14),IF(AND(D14<10,E14>9),CONCATENATE("0",D14,"/",E14,"/",F14),IF(AND(D14>9,E14>9),CONCATENATE(D14,"/",E14,"/",F14)))))) -> 28/11/2025 | M14: =IF(B14=0,"",IF($A$1+1=J14,M13+G14+H14,IF($A$1+1<J14,M13-R14,M13))) -> 938.3063335 | N14: =IF(A14=0,"",IF(AND(Datos!$H$25>0,E14=7),IF(O14<$G$1*Datos!$H$25,O14,$G$1*Datos!$H$25),IF(AND(Datos!$H$26>0,E14=12),IF(O14<$G$1*Datos!$H$26,O14,$G$1*Datos!$H$26),IF((AB14+AF14)<S14,(AB14+AF14),S14)))) -> 49.31251799 | O14: =IF(A14=0,"",IF(S14=0,0,AB14+AF14)) -> 49.31251799 | P14: 49.31251799 | Q14: =IF($A14=0,"",IF(S14=0,0,IF(AF14<=N14,AF14,N14))) -> 0 | R14: =IF(B14=0,"",IF(X14=0,0,S14-N14)) -> 61.69366651 | S14: =+IF(A14=0,"",IF(K14<=$A$1,0,IF(E14=7,$G$1*(1+Datos!$H$25)+Datos!$H$24*(Datos!$H$25)+Datos!$H$25*Datos!$H$43,IF(Cronograma!E14=12,Cronograma!$G$1*(1+Datos!$H$26)+Datos!$H$24*(Datos!$H$26)+Datos!$H$26*Datos!$H$43,Cronograma!$G$1)))) -> 111.0061845 | T14: =+IF(S14="","",IF(Varios!$K$5=1,IF(S14=0,0,IF(Varios!$D$4=1,Varios!$D$2,Varios!$D$3)),0)) -> 0 | U14: =+IF(S14="","",IF(S14=0,0,Varios!$F$4)) -> 0 | V14: =IF(S14="","",IF(Varios!$K$15=1,IF(S14=0,0,Datos!$H$28*Varios!$K$12),0)) -> 0 | W14: =+IF(T14="","",S14+T14+U14+V14) -> 111.0061845 | X14: =+IF(W14="","",W14) -> 111.0061845 | Z14: =IF(J14="","",Datos!$H$18/360*(L14-L13)*M13) -> 47.7715018 | AA14: 1.541016187 | AB14: =IF(Z14="","",SUM(Z14:AA14)) -> 49.31251799 | AD14: =IF(J14="","",Datos!$H$22*12/360*(L14-L13)*M13) -> 0 | AE14: 0 | AF14: =IF(AD14="","",SUM(AD14:AE14)) -> 0 | AG14: =IF(L14="","",L14-L$12) -> 31 | AH14: =+IF(X14="","",W14/((1+$AH$11)^(AG14/365))) -> 105.9163544
A15: 3 | B15: 1 | D15: =+IF($D$1=31,IF(F15/4=TRUNC(F15/4),VLOOKUP(E15,Varios!$C$10:$G$21,3,FALSE),VLOOKUP(E15,Varios!$C$10:$G$21,2,FALSE)),IF($D$1>28,IF(F15/4=TRUNC(F15/4),VLOOKUP(E15,Varios!$C$10:$G$21,5,FALSE),VLOOKUP(E15,Varios!$C$10:$G$21,4,FALSE)),$D$1)) -> 28 | E15: =IF(E14=12,1,E14+1) -> 12 | F15: =+IF(E14=E15,F14,IF(E14+1>12,F14+1,F14)) -> 2025 | G15: 92.69087543 | H15: 0 | J15: 3 | K15: =+IF(J15="","",J15-1) -> 2 | L15: 28/12/2025 | M15: 870.6785064 | N15: =IF(A15=0,"",IF(AND(Datos!$H$25>0,E15=7),IF(O15<$G$1*Datos!$H$25,O15,$G$1*Datos!$H$25),IF(AND(Datos!$H$26>0,E15=12),IF(O15<$G$1*Datos!$H$26,O15,$G$1*Datos!$H$26),IF((AB15+AF15)<S15,(AB15+AF15),S15)))) -> 43.37835745 | O15: 43.37835745 | P15: 43.37835745 | Q15: =IF($A15=0,"",IF(S15=0,0,IF(AF15<=N15,AF15,N15))) -> 0 | R15: =IF(B15=0,"",IF(X15=0,0,S15-N15)) -> 67.62782705 | S15: =+IF(A15=0,"",IF(K15<=$A$1,0,IF(E15=7,$G$1*(1+Datos!$H$25)+Datos!$H$24*(Datos!$H$25)+Datos!$H$25*Datos!$H$43,IF(Cronograma!E15=12,Cronograma!$G$1*(1+Datos!$H$26)+Datos!$H$24*(Datos!$H$26)+Datos!$H$26*Datos!$H$43,Cronograma!$G$1)))) -> 111.0061845 | T15: =+IF(S15="","",IF(Varios!$K$5=1,IF(S15=0,0,IF(Varios!$D$4=1,Varios!$D$2,Varios!$D$3)),0)) -> 0 | U15: =+IF(S15="","",IF(S15=0,0,Varios!$F$4)) -> 0 | V15: =IF(S15="","",IF(Varios!$K$15=1,IF(S15=0,0,Datos!$H$28*Varios!$K$12),0)) -> 0 | W15: 111.0061845 | X15: =+IF(W15="","",W15) -> 111.0061845 | Z15: =IF(J15="","",Datos!$H$18/360*(L15-L14)*M14) -> 43.37835745 | AA15: 0 | AB15: =IF(Z15="","",SUM(Z15:AA15)) -> 43.37835745 | AD15: =IF(J15="","",Datos!$H$22*12/360*(L15-L14)*M14) -> 0 | AE15: 0 | AF15: =IF(AD15="","",SUM(AD15:AE15)) -> 0 | AG15: =IF(L15="","",L15-L$12) -> 61 | AH15: 101.2130299
A16: 4 | B16: 2 | D16: =+IF($D$1=31,IF(F16/4=TRUNC(F16/4),VLOOKUP(E16,Varios!$C$10:$G$21,3,FALSE),VLOOKUP(E16,Varios!$C$10:$G$21,2,FALSE)),IF($D$1>28,IF(F16/4=TRUNC(F16/4),VLOOKUP(E16,Varios!$C$10:$G$21,5,FALSE),VLOOKUP(E16,Varios!$C$10:$G$21,4,FALSE)),$D$1)) -> 28 | E16: 1 | F16: 2026 | G16: 134.2844953 | H16: 0 | J16: 4 | K16: 3 | L16: 28/01/2026 | M16: 801.2659418 | N16: =IF(A16=0,"",IF(AND(Datos!$H$25>0,E16=7),IF(O16<$G$1*Datos!$H$25,O16,$G$1*Datos!$H$25),IF(AND(Datos!$H$26>0,E16=12),IF(O16<$G$1*Datos!$H$26,O16,$G$1*Datos!$H$26),IF((AB16+AF16)<S16,(AB16+AF16),S16)))) -> 41.59361984 | O16: 41.59361984 | P16: 41.59361984 | Q16: 0 | R16: 69.41256466 | S16: =+IF(A16=0,"",IF(K16<=$A$1,0,IF(E16=7,$G$1*(1+Datos!$H$25)+Datos!$H$24*(Datos!$H$25)+Datos!$H$25*Datos!$H$43,IF(Cronograma!E16=12,Cronograma!$G$1*(1+Datos!$H$26)+Datos!$H$24*(Datos!$H$26)+Datos!$H$26*Datos!$H$43,Cronograma!$G$1)))) -> 111.0061845 | T16: =+IF(S16="","",IF(Varios!$K$5=1,IF(S16=0,0,IF(Varios!$D$4=1,Varios!$D$2,Varios!$D$3)),0)) -> 0 | U16: =+IF(S16="","",IF(S16=0,0,Varios!$F$4)) -> 0 | V16: =IF(S16="","",IF(Varios!$K$15=1,IF(S16=0,0,Datos!$H$28*Varios!$K$12),0)) -> 0 | W16: 111.0061845 | X16: =+IF(W16="","",W16) -> 111.0061845 | Z16: =IF(J16="","",Datos!$H$18/360*(L16-L15)*M15) -> 41.59361984 | AA16: 0 | AB16: 41.59361984 | AD16: =IF(J16="","",Datos!$H$22*12/360*(L16-L15)*M15) -> 0 | AE16: 0 | AF16: 0 | AG16: 92 | AH16: 96.57223326
A17: 5 | B17: 3 | D17: =+IF($D$1=31,IF(F17/4=TRUNC(F17/4),VLOOKUP(E17,Varios!$C$10:$G$21,3,FALSE),VLOOKUP(E17,Varios!$C$10:$G$21,2,FALSE)),IF($D$1>28,IF(F17/4=TRUNC(F17/4),VLOOKUP(E17,Varios!$C$10:$G$21,5,FALSE),VLOOKUP(E17,Varios!$C$10:$G$21,4,FALSE)),$D$1)) -> 28 | E17: 2 | F17: 2026 | G17: 172.5621726 | H17: 0 | J17: 5 | K17: 4 | L17: 28/02/2026 | M17: 728.5374347 | N17: =IF(A17=0,"",IF(AND(Datos!$H$25>0,E17=7),IF(O17<$G$1*Datos!$H$25,O17,$G$1*Datos!$H$25),IF(AND(Datos!$H$26>0,E17=12),IF(O17<$G$1*Datos!$H$26,O17,$G$1*Datos!$H$26),IF((AB17+AF17)<S17,(AB17+AF17),S17)))) -> 38.27767738 | O17: 38.27767738 | P17: 38.27767738 | Q17: 0 | R17: 72.72850712 | S17: =+IF(A17=0,"",IF(K17<=$A$1,0,IF(E17=7,$G$1*(1+Datos!$H$25)+Datos!$H$24*(Datos!$H$25)+Datos!$H$25*Datos!$H$43,IF(Cronograma!E17=12,Cronograma!$G$1*(1+Datos!$H$26)+Datos!$H$24*(Datos!$H$26)+Datos!$H$26*Datos!$H$43,Cronograma!$G$1)))) -> 111.0061845 | T17: =+IF(S17="","",IF(Varios!$K$5=1,IF(S17=0,0,IF(Varios!$D$4=1,Varios!$D$2,Varios!$D$3)),0)) -> 0 | U17: =+IF(S17="","",IF(S17=0,0,Varios!$F$4)) -> 0 | V17: =IF(S17="","",IF(Varios!$K$15=1,IF(S17=0,0,Datos!$H$28*Varios!$K$12),0)) -> 0 | W17: 111.0061845 | X17: 111.0061845 | Z17: =IF(J17="","",Datos!$H$18/360*(L17-L16)*M16) -> 38.27767738 | AA17: 0 | AB17: 38.27767738 | AD17: =IF(J17="","",Datos!$H$22*12/360*(L17-L16)*M16) -> 0 | AE17: 0 | AF17: 0 | AG17: 123 | AH17: 92.14422537
A18: 6 | B18: 4 | D18: =+IF($D$1=31,IF(F18/4=TRUNC(F18/4),VLOOKUP(E18,Varios!$C$10:$G$21,3,FALSE),VLOOKUP(E18,Varios!$C$10:$G$21,2,FALSE)),IF($D$1>28,IF(F18/4=TRUNC(F18/4),VLOOKUP(E18,Varios!$C$10:$G$21,5,FALSE),VLOOKUP(E18,Varios!$C$10:$G$21,4,FALSE)),$D$1)) -> 28 | E18: 3 | F18: 2026 | G18: 203.9974361 | H18: 0 | J18: 6 | K18: 5 | L18: 28/03/2026 | M18: 648.9665136 | N18: =IF(A18=0,"",IF(AND(Datos!$H$25>0,E18=7),IF(O18<$G$1*Datos!$H$25,O18,$G$1*Datos!$H$25),IF(AND(Datos!$H$26>0,E18=12),IF(O18<$G$1*Datos!$H$26,O18,$G$1*Datos!$H$26),IF((AB18+AF18)<S18,(AB18+AF18),S18)))) -> 31.43526343 | O18: 31.43526343 | P18: 31.43526343 | Q18: 0 | R18: 79.57092107 | S18: =+IF(A18=0,"",IF(K18<=$A$1,0,IF(E18=7,$G$1*(1+Datos!$H$25)+Datos!$H$24*(Datos!$H$25)+Datos!$H$25*Datos!$H$43,IF(Cronograma!E18=12,Cronograma!$G$1*(1+Datos!$H$26)+Datos!$H$24*(Datos!$H$26)+Datos!$H$26*Datos!$H$43,Cronograma!$G$1)))) -> 111.0061845 | T18: =+IF(S18="","",IF(Varios!$K$5=1,IF(S18=0,0,IF(Varios!$D$4=1,Varios!$D$2,Varios!$D$3)),0)) -> 0 | U18: =+IF(S18="","",IF(S18=0,0,Varios!$F$4)) -> 0 | V18: =IF(S18="","",IF(Varios!$K$15=1,IF(S18=0,0,Datos!$H$28*Varios!$K$12),0)) -> 0 | W18: 111.0061845 | X18: 111.0061845 | Z18: =IF(J18="","",Datos!$H$18/360*(L18-L17)*M17) -> 31.43526343 | AA18: 0 | AB18: 31.43526343 | AD18: =IF(J18="","",Datos!$H$22*12/360*(L18-L17)*M17) -> 0 | AE18: 0 | AF18: 0 | AG18: 151 | AH18: 88.31950613
A19: 7 | B19: 5 | D19: =+IF($D$1=31,IF(F19/4=TRUNC(F19/4),VLOOKUP(E19,Varios!$C$10:$G$21,3,FALSE),VLOOKUP(E19,Varios!$C$10:$G$21,2,FALSE)),IF($D$1>28,IF(F19/4=TRUNC(F19/4),VLOOKUP(E19,Varios!$C$10:$G$21,5,FALSE),VLOOKUP(E19,Varios!$C$10:$G$21,4,FALSE)),$D$1)) -> 28 | E19: 4 | F19: 2026 | G19: 234.9995411 | H19: 0 | J19: 7 | K19: 6 | L19: 28/04/2026 | M19: 568.9624341 | N19: =IF(A19=0,"",IF(AND(Datos!$H$25>0,E19=7),IF(O19<$G$1*Datos!$H$25,O19,$G$1*Datos!$H$25),IF(AND(Datos!$H$26>0,E19=12),IF(O19<$G$1*Datos!$H$26,O19,$G$1*Datos!$H$26),IF((AB19+AF19)<S19,(AB19+AF19),S19)))) -> 31.00210497 | O19: 31.00210497 | P19: 31.00210497 | Q19: 0 | R19: 80.00407953 | S19: =+IF(A19=0,"",IF(K19<=$A$1,0,IF(E19=7,$G$1*(1+Datos!$H$25)+Datos!$H$24*(Datos!$H$25)+Datos!$H$25*Datos!$H$43,IF(Cronograma!E19=12,Cronograma!$G$1*(1+Datos!$H$26)+Datos!$H$24*(Datos!$H$26)+Datos!$H$26*Datos!$H$43,Cronograma!$G$1)))) -> 111.0061845 | T19: =+IF(S19="","",IF(Varios!$K$5=1,IF(S19=0,0,IF(Varios!$D$4=1,Varios!$D$2,Varios!$D$3)),0)) -> 0 | U19: =+IF(S19="","",IF(S19=0,0,Varios!$F$4)) -> 0 | V19: =IF(S19="","",IF(Varios!$K$15=1,IF(S19=0,0,Datos!$H$28*Varios!$K$12),0)) -> 0 | W19: 111.0061845 | X19: 111.0061845 | Z19: =IF(J19="","",Datos!$H$18/360*(L19-L18)*M18) -> 31.00210497 | AA19: 0 | AB19: 31.00210497 | AD19: =IF(J19="","",Datos!$H$22*12/360*(L19-L18)*M18) -> 0 | AE19: 0 | AF19: 0 | AG19: 182 | AH19: 84.26990039
A20: 8 | B20: 6 | D20: =+IF($D$1=31,IF(F20/4=TRUNC(F20/4),VLOOKUP(E20,Varios!$C$10:$G$21,3,FALSE),VLOOKUP(E20,Varios!$C$10:$G$21,2,FALSE)),IF($D$1>28,IF(F20/4=TRUNC(F20/4),VLOOKUP(E20,Varios!$C$10:$G$21,5,FALSE),VLOOKUP(E20,Varios!$C$10:$G$21,4,FALSE)),$D$1)) -> 28 | E20: 5 | F20: 2026 | G20: 261.3029507 | H20: 0 | J20: 8 | K20: 7 | L20: 28/05/2026 | M20: 484.2596592 | N20: =IF(A20=0,"",IF(AND(Datos!$H$25>0,E20=7),IF(O20<$G$1*Datos!$H$25,O20,$G$1*Datos!$H$25),IF(AND(Datos!$H$26>0,E20=12),IF(O20<$G$1*Datos!$H$26,O20,$G$1*Datos!$H$26),IF((AB20+AF20)<S20,(AB20+AF20),S20)))) -> 26.30340962 | O20: 26.30340962 | P20: 26.30340962 | Q20: 0 | R20: 84.70277488 | S20: =+IF(A20=0,"",IF(K20<=$A$1,0,IF(E20=7,$G$1*(1+Datos!$H$25)+Datos!$H$24*(Datos!$H$25)+Datos!$H$25*Datos!$H$43,IF(Cronograma!E20=12,Cronograma!$G$1*(1+Datos!$H$26)+Datos!$H$24*(Datos!$H$26)+Datos!$H$26*Datos!$H$43,Cronograma!$G$1)))) -> 111.0061845 | T20: =+IF(S20="","",IF(Varios!$K$5=1,IF(S20=0,0,IF(Varios!$D$4=1,Varios!$D$2,Varios!$D$3)),0)) -> 0 | U20: =+IF(S20="","",IF(S20=0,0,Varios!$F$4)) -> 0 | V20: =IF(S20="","",IF(Varios!$K$15=1,IF(S20=0,0,Datos!$H$28*Varios!$K$12),0)) -> 0 | W20: 111.0061845 | X20: 111.0061845 | Z20: =IF(J20="","",Datos!$H$18/360*(L20-L19)*M19) -> 26.30340962 | AA20: 0 | AB20: 26.30340962 | AD20: =IF(J20="","",Datos!$H$22*12/360*(L20-L19)*M19) -> 0 | AE20: 0 | AF20: 0 | AG20: 212 | AH20: 80.52780892
A21: 9 | B21: 7 | D21: =+IF($D$1=31,IF(F21/4=TRUNC(F21/4),VLOOKUP(E21,Varios!$C$10:$G$21,3,FALSE),VLOOKUP(E21,Varios!$C$10:$G$21,2,FALSE)),IF($D$1>28,IF(F21/4=TRUNC(F21/4),VLOOKUP(E21,Varios!$C$10:$G$21,5,FALSE),VLOOKUP(E21,Varios!$C$10:$G$21,4,FALSE)),$D$1)) -> 28 | E21: 6 | F21: 2026 | G21: 284.4367619 | H21: 0 | J21: 9 | K21: 8 | L21: 28/06/2026 | M21: 396.3872859 | N21: =IF(A21=0,"",IF(AND(Datos!$H$25>0,E21=7),IF(O21<$G$1*Datos!$H$25,O21,$G$1*Datos!$H$25),IF(AND(Datos!$H$26>0,E21=12),IF(O21<$G$1*Datos!$H$26,O21,$G$1*Datos!$H$26),IF((AB21+AF21)<S21,(AB21+AF21),S21)))) -> 23.13381118 | O21: 23.13381118 | P21: 23.13381118 | Q21: 0 | R21: 87.87237332 | S21: =+IF(A21=0,"",IF(K21<=$A$1,0,IF(E21=7,$G$1*(1+Datos!$H$25)+Datos!$H$24*(Datos!$H$25)+Datos!$H$25*Datos!$H$43,IF(Cronograma!E21=12,Cronograma!$G$1*(1+Datos!$H$26)+Datos!$H$24*(Datos!$H$26)+Datos!$H$26*Datos!$H$43,Cronograma!$G$1)))) -> 111.0061845 | T21: =+IF(S21="","",IF(Varios!$K$5=1,IF(S21=0,0,IF(Varios!$D$4=1,Varios!$D$2,Varios!$D$3)),0)) -> 0 | U21: =+IF(S21="","",IF(S21=0,0,Varios!$F$4)) -> 0 | V21: =IF(S21="","",IF(Varios!$K$15=1,IF(S21=0,0,Datos!$H$28*Varios!$K$12),0)) -> 0 | W21: 111.0061845 | X21: 111.0061845 | Z21: =IF(J21="","",Datos!$H$18/360*(L21-L20)*M20) -> 23.13381118 | AA21: 0 | AB21: 23.13381118 | AD21: =IF(J21="","",Datos!$H$22*12/360*(L21-L20)*M20) -> 0 | AE21: 0 | AF21: 0 | AG21: 243 | AH21: 76.83546629
A22: 10 | B22: 8 | D22: =+IF($D$1=31,IF(F22/4=TRUNC(F22/4),VLOOKUP(E22,Varios!$C$10:$G$21,3,FALSE),VLOOKUP(E22,Varios!$C$10:$G$21,2,FALSE)),IF($D$1>28,IF(F22/4=TRUNC(F22/4),VLOOKUP(E22,Varios!$C$10:$G$21,5,FALSE),VLOOKUP(E22,Varios!$C$10:$G$21,4,FALSE)),$D$1)) -> 28 | E22: 7 | F22: 2026 | G22: 302.7619386 | H22: 0 | J22: 10 | K22: 9 | L22: 28/07/2026 | M22: 303.7062781 | N22: =IF(A22=0,"",IF(AND(Datos!$H$25>0,E22=7),IF(O22<$G$1*Datos!$H$25,O22,$G$1*Datos!$H$25),IF(AND(Datos!$H$26>0,E22=12),IF(O22<$G$1*Datos!$H$26,O22,$G$1*Datos!$H$26),IF((AB22+AF22)<S22,(AB22+AF22),S22)))) -> 18.32517672 | O22: 18.32517672 | P22: 18.32517672 | Q22: 0 | R22: 92.68100778 | S22: =+IF(A22=0,"",IF(K22<=$A$1,0,IF(E22=7,$G$1*(1+Datos!$H$25)+Datos!$H$24*(Datos!$H$25)+Datos!$H$25*Datos!$H$43,IF(Cronograma!E22=12,Cronograma!$G$1*(1+Datos!$H$26)+Datos!$H$24*(Datos!$H$26)+Datos!$H$26*Datos!$H$43,Cronograma!$G$1)))) -> 111.0061845 | T22: =+IF(S22="","",IF(Varios!$K$5=1,IF(S22=0,0,IF(Varios!$D$4=1,Varios!$D$2,Varios!$D$3)),0)) -> 0 | U22: =+IF(S22="","",IF(S22=0,0,Varios!$F$4)) -> 0 | V22: =IF(S22="","",IF(Varios!$K$15=1,IF(S22=0,0,Datos!$H$28*Varios!$K$12),0)) -> 0 | W22: 111.0061845 | X22: 111.0061845 | Z22: =IF(J22="","",Datos!$H$18/360*(L22-L21)*M21) -> 18.32517672 | AA22: 0 | AB22: 18.32517672 | AD22: =IF(J22="","",Datos!$H$22*12/360*(L22-L21)*M21) -> 0 | AE22: 0 | AF22: 0 | AG22: 273 | AH22: 73.4235085
A23: 11 | B23: 9 | D23: =+IF($D$1=31,IF(F23/4=TRUNC(F23/4),VLOOKUP(E23,Varios!$C$10:$G$21,3,FALSE),VLOOKUP(E23,Varios!$C$10:$G$21,2,FALSE)),IF($D$1>28,IF(F23/4=TRUNC(F23/4),VLOOKUP(E23,Varios!$C$10:$G$21,5,FALSE),VLOOKUP(E23,Varios!$C$10:$G$21,4,FALSE)),$D$1)) -> 28 | E23: 8 | F23: 2026 | G23: 317.2704436 | H23: 0 | J23: 11 | K23: 10 | L23: 28/08/2026 | M23: 207.2085986 | N23: =IF(A23=0,"",IF(AND(Datos!$H$25>0,E23=7),IF(O23<$G$1*Datos!$H$25,O23,$G$1*Datos!$H$25),IF(AND(Datos!$H$26>0,E23=12),IF(O23<$G$1*Datos!$H$26,O23,$G$1*Datos!$H$26),IF((AB23+AF23)<S23,(AB23+AF23),S23)))) -> 14.50850501 | O23: 14.50850501 | P23: 14.50850501 | Q23: 0 | R23: 96.49767949 | S23: =+IF(A23=0,"",IF(K23<=$A$1,0,IF(E23=7,$G$1*(1+Datos!$H$25)+Datos!$H$24*(Datos!$H$25)+Datos!$H$25*Datos!$H$43,IF(Cronograma!E23=12,Cronograma!$G$1*(1+Datos!$H$26)+Datos!$H$24*(Datos!$H$26)+Datos!$H$26*Datos!$H$43,Cronograma!$G$1)))) -> 111.0061845 | T23: =+IF(S23="","",IF(Varios!$K$5=1,IF(S23=0,0,IF(Varios!$D$4=1,Varios!$D$2,Varios!$D$3)),0)) -> 0 | U23: =+IF(S23="","",IF(S23=0,0,Varios!$F$4)) -> 0 | V23: =IF(S23="","",IF(Varios!$K$15=1,IF(S23=0,0,Datos!$H$28*Varios!$K$12),0)) -> 0 | W23: 111.0061845 | X23: 111.0061845 | Z23: =IF(J23="","",Datos!$H$18/360*(L23-L22)*M22) -> 14.50850501 | AA23: 0 | AB23: 14.50850501 | AD23: =IF(J23="","",Datos!$H$22*12/360*(L23-L22)*M22) -> 0 | AE23: 0 | AF23: 0 | AG23: 304 | AH23: 70.05691063
A24: 12 | B24: 10 | D24: =+IF($D$1=31,IF(F24/4=TRUNC(F24/4),VLOOKUP(E24,Varios!$C$10:$G$21,3,FALSE),VLOOKUP(E24,Varios!$C$10:$G$21,2,FALSE)),IF($D$1>28,IF(F24/4=TRUNC(F24/4),VLOOKUP(E24,Varios!$C$10:$G$21,5,FALSE),VLOOKUP(E24,Varios!$C$10:$G$21,4,FALSE)),$D$1)) -> 28 | E24: 9 | F24: 2026 | G24: 327.1691095 | H24: 0 | J24: 12 | K24: 11 | L24: 28/09/2026 | M24: 106.10108 | N24: =IF(A24=0,"",IF(AND(Datos!$H$25>0,E24=7),IF(O24<$G$1*Datos!$H$25,O24,$G$1*Datos!$H$25),IF(AND(Datos!$H$26>0,E24=12),IF(O24<$G$1*Datos!$H$26,O24,$G$1*Datos!$H$26),IF((AB24+AF24)<S24,(AB24+AF24),S24)))) -> 9.898665941 | O24: 9.898665941 | P24: 9.898665941 | Q24: 0 | R24: 101.1075186 | S24: =+IF(A24=0,"",IF(K24<=$A$1,0,IF(E24=7,$G$1*(1+Datos!$H$25)+Datos!$H$24*(Datos!$H$25)+Datos!$H$25*Datos!$H$43,IF(Cronograma!E24=12,Cronograma!$G$1*(1+Datos!$H$26)+Datos!$H$24*(Datos!$H$26)+Datos!$H$26*Datos!$H$43,Cronograma!$G$1)))) -> 111.0061845 | T24: =+IF(S24="","",IF(Varios!$K$5=1,IF(S24=0,0,IF(Varios!$D$4=1,Varios!$D$2,Varios!$D$3)),0)) -> 0 | U24: =+IF(S24="","",IF(S24=0,0,Varios!$F$4)) -> 0 | V24: =IF(S24="","",IF(Varios!$K$15=1,IF(S24=0,0,Datos!$H$28*Varios!$K$12),0)) -> 0 | W24: 111.0061845 | X24: 111.0061845 | Z24: =IF(J24="","",Datos!$H$18/360*(L24-L23)*M23) -> 9.898665941 | AA24: 0 | AB24: 9.898665941 | AD24: =IF(J24="","",Datos!$H$22*12/360*(L24-L23)*M23) -> 0 | AE24: 0 | AF24: 0 | AG24: 335 | AH24: 66.84467723
A25: 13 | B25: 11 | D25: =+IF($D$1=31,IF(F25/4=TRUNC(F25/4),VLOOKUP(E25,Varios!$C$10:$G$21,3,FALSE),VLOOKUP(E25,Varios!$C$10:$G$21,2,FALSE)),IF($D$1>28,IF(F25/4=TRUNC(F25/4),VLOOKUP(E25,Varios!$C$10:$G$21,5,FALSE),VLOOKUP(E25,Varios!$C$10:$G$21,4,FALSE)),$D$1)) -> 28 | E25: 10 | F25: 2026 | G25: 332.074214 | H25: 0 | J25: 13 | K25: 12 | L25: 28/10/2026 | M25: 2.842170943e-13 | N25: =IF(A25=0,"",IF(AND(Datos!$H$25>0,E25=7),IF(O25<$G$1*Datos!$H$25,O25,$G$1*Datos!$H$25),IF(AND(Datos!$H$26>0,E25=12),IF(O25<$G$1*Datos!$H$26,O25,$G$1*Datos!$H$26),IF((AB25+AF25)<S25,(AB25+AF25),S25)))) -> 4.905104454 | O25: 4.905104454 | P25: 4.905104454 | Q25: 0 | R25: 106.10108 | S25: =+IF(A25=0,"",IF(K25<=$A$1,0,IF(E25=7,$G$1*(1+Datos!$H$25)+Datos!$H$24*(Datos!$H$25)+Datos!$H$25*Datos!$H$43,IF(Cronograma!E25=12,Cronograma!$G$1*(1+Datos!$H$26)+Datos!$H$24*(Datos!$H$26)+Datos!$H$26*Datos!$H$43,Cronograma!$G$1)))) -> 111.0061845 | T25: =+IF(S25="","",IF(Varios!$K$5=1,IF(S25=0,0,IF(Varios!$D$4=1,Varios!$D$2,Varios!$D$3)),0)) -> 0 | U25: =+IF(S25="","",IF(S25=0,0,Varios!$F$4)) -> 0 | V25: =IF(S25="","",IF(Varios!$K$15=1,IF(S25=0,0,Datos!$H$28*Varios!$K$12),0)) -> 0 | W25: 111.0061845 | X25: 111.0061845 | Z25: =IF(J25="","",Datos!$H$18/360*(L25-L24)*M24) -> 4.905104454 | AA25: 0 | AB25: 4.905104454 | AD25: =IF(J25="","",Datos!$H$22*12/360*(L25-L24)*M24) -> 0 | AE25: 0 | AF25: 0 | AG25: 365 | AH25: 63.87637069
A26: 0 | B26: 0 | D26: =+IF($D$1=31,IF(F26/4=TRUNC(F26/4),VLOOKUP(E26,Varios!$C$10:$G$21,3,FALSE),VLOOKUP(E26,Varios!$C$10:$G$21,2,FALSE)),IF($D$1>28,IF(F26/4=TRUNC(F26/4),VLOOKUP(E26,Varios!$C$10:$G$21,5,FALSE),VLOOKUP(E26,Varios!$C$10:$G$21,4,FALSE)),$D$1)) -> 28 | E26: 11 | F26: =+IF(E25=E26,F25,IF(E25+1>12,F25+1,F25)) -> 2026 | N26: =IF(A26=0,"",IF(AND(Datos!$H$25>0,E26=7),IF(O26<$G$1*Datos!$H$25,O26,$G$1*Datos!$H$25),IF(AND(Datos!$H$26>0,E26=12),IF(O26<$G$1*Datos!$H$26,O26,$G$1*Datos!$H$26),IF((AB26+AF26)<S26,(AB26+AF26),S26)))) ->  | S26: =+IF(A26=0,"",IF(K26<=$A$1,0,IF(E26=7,$G$1*(1+Datos!$H$25)+Datos!$H$24*(Datos!$H$25)+Datos!$H$25*Datos!$H$43,IF(Cronograma!E26=12,Cronograma!$G$1*(1+Datos!$H$26)+Datos!$H$24*(Datos!$H$26)+Datos!$H$26*Datos!$H$43,Cronograma!$G$1)))) ->  | T26: =+IF(S26="","",IF(Varios!$K$5=1,IF(S26=0,0,IF(Varios!$D$4=1,Varios!$D$2,Varios!$D$3)),0)) ->  | U26: =+IF(S26="","",IF(S26=0,0,Varios!$F$4)) ->  | V26: =IF(S26="","",IF(Varios!$K$15=1,IF(S26=0,0,Datos!$H$28*Varios!$K$12),0)) ->  | Z26: =IF(J26="","",Datos!$H$18/360*(L26-L25)*M25) ->  | AD26: =IF(J26="","",Datos!$H$22*12/360*(L26-L25)*M25) -> 
A27: 0 | B27: 0 | D27: =+IF($D$1=31,IF(F27/4=TRUNC(F27/4),VLOOKUP(E27,Varios!$C$10:$G$21,3,FALSE),VLOOKUP(E27,Varios!$C$10:$G$21,2,FALSE)),IF($D$1>28,IF(F27/4=TRUNC(F27/4),VLOOKUP(E27,Varios!$C$10:$G$21,5,FALSE),VLOOKUP(E27,Varios!$C$10:$G$21,4,FALSE)),$D$1)) -> 28 | E27: 12 | F27: 2026 | N27: =IF(A27=0,"",IF(AND(Datos!$H$25>0,E27=7),IF(O27<$G$1*Datos!$H$25,O27,$G$1*Datos!$H$25),IF(AND(Datos!$H$26>0,E27=12),IF(O27<$G$1*Datos!$H$26,O27,$G$1*Datos!$H$26),IF((AB27+AF27)<S27,(AB27+AF27),S27)))) ->  | S27: =+IF(A27=0,"",IF(K27<=$A$1,0,IF(E27=7,$G$1*(1+Datos!$H$25)+Datos!$H$24*(Datos!$H$25)+Datos!$H$25*Datos!$H$43,IF(Cronograma!E27=12,Cronograma!$G$1*(1+Datos!$H$26)+Datos!$H$24*(Datos!$H$26)+Datos!$H$26*Datos!$H$43,Cronograma!$G$1)))) ->  | T27: =+IF(S27="","",IF(Varios!$K$5=1,IF(S27=0,0,IF(Varios!$D$4=1,Varios!$D$2,Varios!$D$3)),0)) ->  | U27: =+IF(S27="","",IF(S27=0,0,Varios!$F$4)) ->  | V27: =IF(S27="","",IF(Varios!$K$15=1,IF(S27=0,0,Datos!$H$28*Varios!$K$12),0)) ->  | Z27: =IF(J27="","",Datos!$H$18/360*(L27-L26)*M26) ->  | AD27: =IF(J27="","",Datos!$H$22*12/360*(L27-L26)*M26) -> 
A28: 0 | B28: 0 | D28: =+IF($D$1=31,IF(F28/4=TRUNC(F28/4),VLOOKUP(E28,Varios!$C$10:$G$21,3,FALSE),VLOOKUP(E28,Varios!$C$10:$G$21,2,FALSE)),IF($D$1>28,IF(F28/4=TRUNC(F28/4),VLOOKUP(E28,Varios!$C$10:$G$21,5,FALSE),VLOOKUP(E28,Varios!$C$10:$G$21,4,FALSE)),$D$1)) -> 28 | E28: 1 | F28: 2027 | N28: =IF(A28=0,"",IF(AND(Datos!$H$25>0,E28=7),IF(O28<$G$1*Datos!$H$25,O28,$G$1*Datos!$H$25),IF(AND(Datos!$H$26>0,E28=12),IF(O28<$G$1*Datos!$H$26,O28,$G$1*Datos!$H$26),IF((AB28+AF28)<S28,(AB28+AF28),S28)))) ->  | S28: =+IF(A28=0,"",IF(K28<=$A$1,0,IF(E28=7,$G$1*(1+Datos!$H$25)+Datos!$H$24*(Datos!$H$25)+Datos!$H$25*Datos!$H$43,IF(Cronograma!E28=12,Cronograma!$G$1*(1+Datos!$H$26)+Datos!$H$24*(Datos!$H$26)+Datos!$H$26*Datos!$H$43,Cronograma!$G$1)))) ->  | T28: =+IF(S28="","",IF(Varios!$K$5=1,IF(S28=0,0,IF(Varios!$D$4=1,Varios!$D$2,Varios!$D$3)),0)) ->  | U28: =+IF(S28="","",IF(S28=0,0,Varios!$F$4)) ->  | V28: =IF(S28="","",IF(Varios!$K$15=1,IF(S28=0,0,Datos!$H$28*Varios!$K$12),0)) ->  | Z28: =IF(J28="","",Datos!$H$18/360*(L28-L27)*M27) ->  | AD28: =IF(J28="","",Datos!$H$22*12/360*(L28-L27)*M27) -> 
A29: 0 | B29: 0 | D29: =+IF($D$1=31,IF(F29/4=TRUNC(F29/4),VLOOKUP(E29,Varios!$C$10:$G$21,3,FALSE),VLOOKUP(E29,Varios!$C$10:$G$21,2,FALSE)),IF($D$1>28,IF(F29/4=TRUNC(F29/4),VLOOKUP(E29,Varios!$C$10:$G$21,5,FALSE),VLOOKUP(E29,Varios!$C$10:$G$21,4,FALSE)),$D$1)) -> 28 | E29: 2 | F29: 2027 | N29: =IF(A29=0,"",IF(AND(Datos!$H$25>0,E29=7),IF(O29<$G$1*Datos!$H$25,O29,$G$1*Datos!$H$25),IF(AND(Datos!$H$26>0,E29=12),IF(O29<$G$1*Datos!$H$26,O29,$G$1*Datos!$H$26),IF((AB29+AF29)<S29,(AB29+AF29),S29)))) ->  | S29: =+IF(A29=0,"",IF(K29<=$A$1,0,IF(E29=7,$G$1*(1+Datos!$H$25)+Datos!$H$24*(Datos!$H$25)+Datos!$H$25*Datos!$H$43,IF(Cronograma!E29=12,Cronograma!$G$1*(1+Datos!$H$26)+Datos!$H$24*(Datos!$H$26)+Datos!$H$26*Datos!$H$43,Cronograma!$G$1)))) ->  | T29: =+IF(S29="","",IF(Varios!$K$5=1,IF(S29=0,0,IF(Varios!$D$4=1,Varios!$D$2,Varios!$D$3)),0)) ->  | U29: =+IF(S29="","",IF(S29=0,0,Varios!$F$4)) ->  | V29: =IF(S29="","",IF(Varios!$K$15=1,IF(S29=0,0,Datos!$H$28*Varios!$K$12),0)) ->  | Z29: =IF(J29="","",Datos!$H$18/360*(L29-L28)*M28) ->  | AD29: =IF(J29="","",Datos!$H$22*12/360*(L29-L28)*M28) -> 
A30: 0 | B30: 0 | D30: =+IF($D$1=31,IF(F30/4=TRUNC(F30/4),VLOOKUP(E30,Varios!$C$10:$G$21,3,FALSE),VLOOKUP(E30,Varios!$C$10:$G$21,2,FALSE)),IF($D$1>28,IF(F30/4=TRUNC(F30/4),VLOOKUP(E30,Varios!$C$10:$G$21,5,FALSE),VLOOKUP(E30,Varios!$C$10:$G$21,4,FALSE)),$D$1)) -> 28 | E30: 3 | F30: 2027 | N30: =IF(A30=0,"",IF(AND(Datos!$H$25>0,E30=7),IF(O30<$G$1*Datos!$H$25,O30,$G$1*Datos!$H$25),IF(AND(Datos!$H$26>0,E30=12),IF(O30<$G$1*Datos!$H$26,O30,$G$1*Datos!$H$26),IF((AB30+AF30)<S30,(AB30+AF30),S30)))) ->  | S30: =+IF(A30=0,"",IF(K30<=$A$1,0,IF(E30=7,$G$1*(1+Datos!$H$25)+Datos!$H$24*(Datos!$H$25)+Datos!$H$25*Datos!$H$43,IF(Cronograma!E30=12,Cronograma!$G$1*(1+Datos!$H$26)+Datos!$H$24*(Datos!$H$26)+Datos!$H$26*Datos!$H$43,Cronograma!$G$1)))) ->  | T30: =+IF(S30="","",IF(Varios!$K$5=1,IF(S30=0,0,IF(Varios!$D$4=1,Varios!$D$2,Varios!$D$3)),0)) ->  | U30: =+IF(S30="","",IF(S30=0,0,Varios!$F$4)) ->  | V30: =IF(S30="","",IF(Varios!$K$15=1,IF(S30=0,0,Datos!$H$28*Varios!$K$12),0)) ->  | Z30: =IF(J30="","",Datos!$H$18/360*(L30-L29)*M29) ->  | AD30: =IF(J30="","",Datos!$H$22*12/360*(L30-L29)*M29) -> 
A31: 0 | B31: 0 | D31: =+IF($D$1=31,IF(F31/4=TRUNC(F31/4),VLOOKUP(E31,Varios!$C$10:$G$21,3,FALSE),VLOOKUP(E31,Varios!$C$10:$G$21,2,FALSE)),IF($D$1>28,IF(F31/4=TRUNC(F31/4),VLOOKUP(E31,Varios!$C$10:$G$21,5,FALSE),VLOOKUP(E31,Varios!$C$10:$G$21,4,FALSE)),$D$1)) -> 28 | E31: 4 | F31: 2027 | N31: =IF(A31=0,"",IF(AND(Datos!$H$25>0,E31=7),IF(O31<$G$1*Datos!$H$25,O31,$G$1*Datos!$H$25),IF(AND(Datos!$H$26>0,E31=12),IF(O31<$G$1*Datos!$H$26,O31,$G$1*Datos!$H$26),IF((AB31+AF31)<S31,(AB31+AF31),S31)))) ->  | S31: =+IF(A31=0,"",IF(K31<=$A$1,0,IF(E31=7,$G$1*(1+Datos!$H$25)+Datos!$H$24*(Datos!$H$25)+Datos!$H$25*Datos!$H$43,IF(Cronograma!E31=12,Cronograma!$G$1*(1+Datos!$H$26)+Datos!$H$24*(Datos!$H$26)+Datos!$H$26*Datos!$H$43,Cronograma!$G$1)))) ->  | T31: =+IF(S31="","",IF(Varios!$K$5=1,IF(S31=0,0,IF(Varios!$D$4=1,Varios!$D$2,Varios!$D$3)),0)) ->  | U31: =+IF(S31="","",IF(S31=0,0,Varios!$F$4)) ->  | V31: =IF(S31="","",IF(Varios!$K$15=1,IF(S31=0,0,Datos!$H$28*Varios!$K$12),0)) ->  | Z31: =IF(J31="","",Datos!$H$18/360*(L31-L30)*M30) ->  | AD31: =IF(J31="","",Datos!$H$22*12/360*(L31-L30)*M30) -> 
A32: 0 | B32: 0 | D32: =+IF($D$1=31,IF(F32/4=TRUNC(F32/4),VLOOKUP(E32,Varios!$C$10:$G$21,3,FALSE),VLOOKUP(E32,Varios!$C$10:$G$21,2,FALSE)),IF($D$1>28,IF(F32/4=TRUNC(F32/4),VLOOKUP(E32,Varios!$C$10:$G$21,5,FALSE),VLOOKUP(E32,Varios!$C$10:$G$21,4,FALSE)),$D$1)) -> 28 | E32: 5 | F32: 2027 | N32: =IF(A32=0,"",IF(AND(Datos!$H$25>0,E32=7),IF(O32<$G$1*Datos!$H$25,O32,$G$1*Datos!$H$25),IF(AND(Datos!$H$26>0,E32=12),IF(O32<$G$1*Datos!$H$26,O32,$G$1*Datos!$H$26),IF((AB32+AF32)<S32,(AB32+AF32),S32)))) ->  | S32: =+IF(A32=0,"",IF(K32<=$A$1,0,IF(E32=7,$G$1*(1+Datos!$H$25)+Datos!$H$24*(Datos!$H$25)+Datos!$H$25*Datos!$H$43,IF(Cronograma!E32=12,Cronograma!$G$1*(1+Datos!$H$26)+Datos!$H$24*(Datos!$H$26)+Datos!$H$26*Datos!$H$43,Cronograma!$G$1)))) ->  | T32: =+IF(S32="","",IF(Varios!$K$5=1,IF(S32=0,0,IF(Varios!$D$4=1,Varios!$D$2,Varios!$D$3)),0)) ->  | U32: =+IF(S32="","",IF(S32=0,0,Varios!$F$4)) ->  | V32: =IF(S32="","",IF(Varios!$K$15=1,IF(S32=0,0,Datos!$H$28*Varios!$K$12),0)) ->  | Z32: =IF(J32="","",Datos!$H$18/360*(L32-L31)*M31) ->  | AD32: =IF(J32="","",Datos!$H$22*12/360*(L32-L31)*M31) -> 
A33: 0 | B33: 0 | D33: =+IF($D$1=31,IF(F33/4=TRUNC(F33/4),VLOOKUP(E33,Varios!$C$10:$G$21,3,FALSE),VLOOKUP(E33,Varios!$C$10:$G$21,2,FALSE)),IF($D$1>28,IF(F33/4=TRUNC(F33/4),VLOOKUP(E33,Varios!$C$10:$G$21,5,FALSE),VLOOKUP(E33,Varios!$C$10:$G$21,4,FALSE)),$D$1)) -> 28 | E33: 6 | F33: 2027 | N33: =IF(A33=0,"",IF(AND(Datos!$H$25>0,E33=7),IF(O33<$G$1*Datos!$H$25,O33,$G$1*Datos!$H$25),IF(AND(Datos!$H$26>0,E33=12),IF(O33<$G$1*Datos!$H$26,O33,$G$1*Datos!$H$26),IF((AB33+AF33)<S33,(AB33+AF33),S33)))) ->  | S33: =+IF(A33=0,"",IF(K33<=$A$1,0,IF(E33=7,$G$1*(1+Datos!$H$25)+Datos!$H$24*(Datos!$H$25)+Datos!$H$25*Datos!$H$43,IF(Cronograma!E33=12,Cronograma!$G$1*(1+Datos!$H$26)+Datos!$H$24*(Datos!$H$26)+Datos!$H$26*Datos!$H$43,Cronograma!$G$1)))) ->  | T33: =+IF(S33="","",IF(Varios!$K$5=1,IF(S33=0,0,IF(Varios!$D$4=1,Varios!$D$2,Varios!$D$3)),0)) ->  | U33: =+IF(S33="","",IF(S33=0,0,Varios!$F$4)) ->  | V33: =IF(S33="","",IF(Varios!$K$15=1,IF(S33=0,0,Datos!$H$28*Varios!$K$12),0)) ->  | Z33: =IF(J33="","",Datos!$H$18/360*(L33-L32)*M32) ->  | AD33: =IF(J33="","",Datos!$H$22*12/360*(L33-L32)*M32) -> 
A34: 0 | B34: 0 | D34: =+IF($D$1=31,IF(F34/4=TRUNC(F34/4),VLOOKUP(E34,Varios!$C$10:$G$21,3,FALSE),VLOOKUP(E34,Varios!$C$10:$G$21,2,FALSE)),IF($D$1>28,IF(F34/4=TRUNC(F34/4),VLOOKUP(E34,Varios!$C$10:$G$21,5,FALSE),VLOOKUP(E34,Varios!$C$10:$G$21,4,FALSE)),$D$1)) -> 28 | E34: 7 | F34: 2027 | N34: =IF(A34=0,"",IF(AND(Datos!$H$25>0,E34=7),IF(O34<$G$1*Datos!$H$25,O34,$G$1*Datos!$H$25),IF(AND(Datos!$H$26>0,E34=12),IF(O34<$G$1*Datos!$H$26,O34,$G$1*Datos!$H$26),IF((AB34+AF34)<S34,(AB34+AF34),S34)))) ->  | S34: =+IF(A34=0,"",IF(K34<=$A$1,0,IF(E34=7,$G$1*(1+Datos!$H$25)+Datos!$H$24*(Datos!$H$25)+Datos!$H$25*Datos!$H$43,IF(Cronograma!E34=12,Cronograma!$G$1*(1+Datos!$H$26)+Datos!$H$24*(Datos!$H$26)+Datos!$H$26*Datos!$H$43,Cronograma!$G$1)))) ->  | T34: =+IF(S34="","",IF(Varios!$K$5=1,IF(S34=0,0,IF(Varios!$D$4=1,Varios!$D$2,Varios!$D$3)),0)) ->  | U34: =+IF(S34="","",IF(S34=0,0,Varios!$F$4)) ->  | V34: =IF(S34="","",IF(Varios!$K$15=1,IF(S34=0,0,Datos!$H$28*Varios!$K$12),0)) ->  | Z34: =IF(J34="","",Datos!$H$18/360*(L34-L33)*M33) ->  | AD34: =IF(J34="","",Datos!$H$22*12/360*(L34-L33)*M33) -> 
A35: 0 | B35: 0 | D35: =+IF($D$1=31,IF(F35/4=TRUNC(F35/4),VLOOKUP(E35,Varios!$C$10:$G$21,3,FALSE),VLOOKUP(E35,Varios!$C$10:$G$21,2,FALSE)),IF($D$1>28,IF(F35/4=TRUNC(F35/4),VLOOKUP(E35,Varios!$C$10:$G$21,5,FALSE),VLOOKUP(E35,Varios!$C$10:$G$21,4,FALSE)),$D$1)) -> 28 | E35: 8 | F35: 2027 | N35: =IF(A35=0,"",IF(AND(Datos!$H$25>0,E35=7),IF(O35<$G$1*Datos!$H$25,O35,$G$1*Datos!$H$25),IF(AND(Datos!$H$26>0,E35=12),IF(O35<$G$1*Datos!$H$26,O35,$G$1*Datos!$H$26),IF((AB35+AF35)<S35,(AB35+AF35),S35)))) ->  | S35: =+IF(A35=0,"",IF(K35<=$A$1,0,IF(E35=7,$G$1*(1+Datos!$H$25)+Datos!$H$24*(Datos!$H$25)+Datos!$H$25*Datos!$H$43,IF(Cronograma!E35=12,Cronograma!$G$1*(1+Datos!$H$26)+Datos!$H$24*(Datos!$H$26)+Datos!$H$26*Datos!$H$43,Cronograma!$G$1)))) ->  | T35: =+IF(S35="","",IF(Varios!$K$5=1,IF(S35=0,0,IF(Varios!$D$4=1,Varios!$D$2,Varios!$D$3)),0)) ->  | U35: =+IF(S35="","",IF(S35=0,0,Varios!$F$4)) ->  | V35: =IF(S35="","",IF(Varios!$K$15=1,IF(S35=0,0,Datos!$H$28*Varios!$K$12),0)) ->  | Z35: =IF(J35="","",Datos!$H$18/360*(L35-L34)*M34) ->  | AD35: =IF(J35="","",Datos!$H$22*12/360*(L35-L34)*M34) -> 
A36: 0 | B36: 0 | D36: =+IF($D$1=31,IF(F36/4=TRUNC(F36/4),VLOOKUP(E36,Varios!$C$10:$G$21,3,FALSE),VLOOKUP(E36,Varios!$C$10:$G$21,2,FALSE)),IF($D$1>28,IF(F36/4=TRUNC(F36/4),VLOOKUP(E36,Varios!$C$10:$G$21,5,FALSE),VLOOKUP(E36,Varios!$C$10:$G$21,4,FALSE)),$D$1)) -> 28 | E36: 9 | F36: 2027 | N36: =IF(A36=0,"",IF(AND(Datos!$H$25>0,E36=7),IF(O36<$G$1*Datos!$H$25,O36,$G$1*Datos!$H$25),IF(AND(Datos!$H$26>0,E36=12),IF(O36<$G$1*Datos!$H$26,O36,$G$1*Datos!$H$26),IF((AB36+AF36)<S36,(AB36+AF36),S36)))) ->  | S36: =+IF(A36=0,"",IF(K36<=$A$1,0,IF(E36=7,$G$1*(1+Datos!$H$25)+Datos!$H$24*(Datos!$H$25)+Datos!$H$25*Datos!$H$43,IF(Cronograma!E36=12,Cronograma!$G$1*(1+Datos!$H$26)+Datos!$H$24*(Datos!$H$26)+Datos!$H$26*Datos!$H$43,Cronograma!$G$1)))) ->  | T36: =+IF(S36="","",IF(Varios!$K$5=1,IF(S36=0,0,IF(Varios!$D$4=1,Varios!$D$2,Varios!$D$3)),0)) ->  | U36: =+IF(S36="","",IF(S36=0,0,Varios!$F$4)) ->  | V36: =IF(S36="","",IF(Varios!$K$15=1,IF(S36=0,0,Datos!$H$28*Varios!$K$12),0)) ->  | Z36: =IF(J36="","",Datos!$H$18/360*(L36-L35)*M35) ->  | AD36: =IF(J36="","",Datos!$H$22*12/360*(L36-L35)*M35) -> 
A37: 0 | B37: 0 | D37: =+IF($D$1=31,IF(F37/4=TRUNC(F37/4),VLOOKUP(E37,Varios!$C$10:$G$21,3,FALSE),VLOOKUP(E37,Varios!$C$10:$G$21,2,FALSE)),IF($D$1>28,IF(F37/4=TRUNC(F37/4),VLOOKUP(E37,Varios!$C$10:$G$21,5,FALSE),VLOOKUP(E37,Varios!$C$10:$G$21,4,FALSE)),$D$1)) -> 28 | E37: 10 | F37: 2027 | N37: =IF(A37=0,"",IF(AND(Datos!$H$25>0,E37=7),IF(O37<$G$1*Datos!$H$25,O37,$G$1*Datos!$H$25),IF(AND(Datos!$H$26>0,E37=12),IF(O37<$G$1*Datos!$H$26,O37,$G$1*Datos!$H$26),IF((AB37+AF37)<S37,(AB37+AF37),S37)))) ->  | S37: =+IF(A37=0,"",IF(K37<=$A$1,0,IF(E37=7,$G$1*(1+Datos!$H$25)+Datos!$H$24*(Datos!$H$25)+Datos!$H$25*Datos!$H$43,IF(Cronograma!E37=12,Cronograma!$G$1*(1+Datos!$H$26)+Datos!$H$24*(Datos!$H$26)+Datos!$H$26*Datos!$H$43,Cronograma!$G$1)))) ->  | T37: =+IF(S37="","",IF(Varios!$K$5=1,IF(S37=0,0,IF(Varios!$D$4=1,Varios!$D$2,Varios!$D$3)),0)) ->  | U37: =+IF(S37="","",IF(S37=0,0,Varios!$F$4)) ->  | V37: =IF(S37="","",IF(Varios!$K$15=1,IF(S37=0,0,Datos!$H$28*Varios!$K$12),0)) ->  | Z37: =IF(J37="","",Datos!$H$18/360*(L37-L36)*M36) ->  | AD37: =IF(J37="","",Datos!$H$22*12/360*(L37-L36)*M36) -> 
A38: 0 | B38: 0 | D38: =+IF($D$1=31,IF(F38/4=TRUNC(F38/4),VLOOKUP(E38,Varios!$C$10:$G$21,3,FALSE),VLOOKUP(E38,Varios!$C$10:$G$21,2,FALSE)),IF($D$1>28,IF(F38/4=TRUNC(F38/4),VLOOKUP(E38,Varios!$C$10:$G$21,5,FALSE),VLOOKUP(E38,Varios!$C$10:$G$21,4,FALSE)),$D$1)) -> 28 | E38: 11 | F38: 2027 | N38: =IF(A38=0,"",IF(AND(Datos!$H$25>0,E38=7),IF(O38<$G$1*Datos!$H$25,O38,$G$1*Datos!$H$25),IF(AND(Datos!$H$26>0,E38=12),IF(O38<$G$1*Datos!$H$26,O38,$G$1*Datos!$H$26),IF((AB38+AF38)<S38,(AB38+AF38),S38)))) ->  | S38: =+IF(A38=0,"",IF(K38<=$A$1,0,IF(E38=7,$G$1*(1+Datos!$H$25)+Datos!$H$24*(Datos!$H$25)+Datos!$H$25*Datos!$H$43,IF(Cronograma!E38=12,Cronograma!$G$1*(1+Datos!$H$26)+Datos!$H$24*(Datos!$H$26)+Datos!$H$26*Datos!$H$43,Cronograma!$G$1)))) ->  | T38: =+IF(S38="","",IF(Varios!$K$5=1,IF(S38=0,0,IF(Varios!$D$4=1,Varios!$D$2,Varios!$D$3)),0)) ->  | U38: =+IF(S38="","",IF(S38=0,0,Varios!$F$4)) ->  | V38: =IF(S38="","",IF(Varios!$K$15=1,IF(S38=0,0,Datos!$H$28*Varios!$K$12),0)) ->  | Z38: =IF(J38="","",Datos!$H$18/360*(L38-L37)*M37) ->  | AD38: =IF(J38="","",Datos!$H$22*12/360*(L38-L37)*M37) -> 
A39: 0 | B39: 0 | D39: =+IF($D$1=31,IF(F39/4=TRUNC(F39/4),VLOOKUP(E39,Varios!$C$10:$G$21,3,FALSE),VLOOKUP(E39,Varios!$C$10:$G$21,2,FALSE)),IF($D$1>28,IF(F39/4=TRUNC(F39/4),VLOOKUP(E39,Varios!$C$10:$G$21,5,FALSE),VLOOKUP(E39,Varios!$C$10:$G$21,4,FALSE)),$D$1)) -> 28 | E39: 12 | F39: =+IF(E38=E39,F38,IF(E38+1>12,F38+1,F38)) -> 2027 | N39: =IF(A39=0,"",IF(AND(Datos!$H$25>0,E39=7),IF(O39<$G$1*Datos!$H$25,O39,$G$1*Datos!$H$25),IF(AND(Datos!$H$26>0,E39=12),IF(O39<$G$1*Datos!$H$26,O39,$G$1*Datos!$H$26),IF((AB39+AF39)<S39,(AB39+AF39),S39)))) ->  | S39: =+IF(A39=0,"",IF(K39<=$A$1,0,IF(E39=7,$G$1*(1+Datos!$H$25)+Datos!$H$24*(Datos!$H$25)+Datos!$H$25*Datos!$H$43,IF(Cronograma!E39=12,Cronograma!$G$1*(1+Datos!$H$26)+Datos!$H$24*(Datos!$H$26)+Datos!$H$26*Datos!$H$43,Cronograma!$G$1)))) ->  | T39: =+IF(S39="","",IF(Varios!$K$5=1,IF(S39=0,0,IF(Varios!$D$4=1,Varios!$D$2,Varios!$D$3)),0)) ->  | U39: =+IF(S39="","",IF(S39=0,0,Varios!$F$4)) ->  | V39: =IF(S39="","",IF(Varios!$K$15=1,IF(S39=0,0,Datos!$H$28*Varios!$K$12),0)) ->  | Z39: =IF(J39="","",Datos!$H$18/360*(L39-L38)*M38) ->  | AD39: =IF(J39="","",Datos!$H$22*12/360*(L39-L38)*M38) -> 
A40: 0 | B40: 0 | D40: =+IF($D$1=31,IF(F40/4=TRUNC(F40/4),VLOOKUP(E40,Varios!$C$10:$G$21,3,FALSE),VLOOKUP(E40,Varios!$C$10:$G$21,2,FALSE)),IF($D$1>28,IF(F40/4=TRUNC(F40/4),VLOOKUP(E40,Varios!$C$10:$G$21,5,FALSE),VLOOKUP(E40,Varios!$C$10:$G$21,4,FALSE)),$D$1)) -> 28 | E40: 1 | F40: 2028 | N40: =IF(A40=0,"",IF(AND(Datos!$H$25>0,E40=7),IF(O40<$G$1*Datos!$H$25,O40,$G$1*Datos!$H$25),IF(AND(Datos!$H$26>0,E40=12),IF(O40<$G$1*Datos!$H$26,O40,$G$1*Datos!$H$26),IF((AB40+AF40)<S40,(AB40+AF40),S40)))) ->  | S40: =+IF(A40=0,"",IF(K40<=$A$1,0,IF(E40=7,$G$1*(1+Datos!$H$25)+Datos!$H$24*(Datos!$H$25)+Datos!$H$25*Datos!$H$43,IF(Cronograma!E40=12,Cronograma!$G$1*(1+Datos!$H$26)+Datos!$H$24*(Datos!$H$26)+Datos!$H$26*Datos!$H$43,Cronograma!$G$1)))) ->  | T40: =+IF(S40="","",IF(Varios!$K$5=1,IF(S40=0,0,IF(Varios!$D$4=1,Varios!$D$2,Varios!$D$3)),0)) ->  | U40: =+IF(S40="","",IF(S40=0,0,Varios!$F$4)) ->  | V40: =IF(S40="","",IF(Varios!$K$15=1,IF(S40=0,0,Datos!$H$28*Varios!$K$12),0)) ->  | Z40: =IF(J40="","",Datos!$H$18/360*(L40-L39)*M39) ->  | AD40: =IF(J40="","",Datos!$H$22*12/360*(L40-L39)*M39) -> 
A41: 0 | B41: 0 | D41: =+IF($D$1=31,IF(F41/4=TRUNC(F41/4),VLOOKUP(E41,Varios!$C$10:$G$21,3,FALSE),VLOOKUP(E41,Varios!$C$10:$G$21,2,FALSE)),IF($D$1>28,IF(F41/4=TRUNC(F41/4),VLOOKUP(E41,Varios!$C$10:$G$21,5,FALSE),VLOOKUP(E41,Varios!$C$10:$G$21,4,FALSE)),$D$1)) -> 28 | E41: 2 | F41: 2028 | N41: =IF(A41=0,"",IF(AND(Datos!$H$25>0,E41=7),IF(O41<$G$1*Datos!$H$25,O41,$G$1*Datos!$H$25),IF(AND(Datos!$H$26>0,E41=12),IF(O41<$G$1*Datos!$H$26,O41,$G$1*Datos!$H$26),IF((AB41+AF41)<S41,(AB41+AF41),S41)))) ->  | S41: =+IF(A41=0,"",IF(K41<=$A$1,0,IF(E41=7,$G$1*(1+Datos!$H$25)+Datos!$H$24*(Datos!$H$25)+Datos!$H$25*Datos!$H$43,IF(Cronograma!E41=12,Cronograma!$G$1*(1+Datos!$H$26)+Datos!$H$24*(Datos!$H$26)+Datos!$H$26*Datos!$H$43,Cronograma!$G$1)))) ->  | T41: =+IF(S41="","",IF(Varios!$K$5=1,IF(S41=0,0,IF(Varios!$D$4=1,Varios!$D$2,Varios!$D$3)),0)) ->  | U41: =+IF(S41="","",IF(S41=0,0,Varios!$F$4)) ->  | V41: =IF(S41="","",IF(Varios!$K$15=1,IF(S41=0,0,Datos!$H$28*Varios!$K$12),0)) ->  | Z41: =IF(J41="","",Datos!$H$18/360*(L41-L40)*M40) ->  | AD41: =IF(J41="","",Datos!$H$22*12/360*(L41-L40)*M40) -> 
A42: 0 | B42: 0 | D42: =+IF($D$1=31,IF(F42/4=TRUNC(F42/4),VLOOKUP(E42,Varios!$C$10:$G$21,3,FALSE),VLOOKUP(E42,Varios!$C$10:$G$21,2,FALSE)),IF($D$1>28,IF(F42/4=TRUNC(F42/4),VLOOKUP(E42,Varios!$C$10:$G$21,5,FALSE),VLOOKUP(E42,Varios!$C$10:$G$21,4,FALSE)),$D$1)) -> 28 | E42: 3 | F42: 2028 | N42: =IF(A42=0,"",IF(AND(Datos!$H$25>0,E42=7),IF(O42<$G$1*Datos!$H$25,O42,$G$1*Datos!$H$25),IF(AND(Datos!$H$26>0,E42=12),IF(O42<$G$1*Datos!$H$26,O42,$G$1*Datos!$H$26),IF((AB42+AF42)<S42,(AB42+AF42),S42)))) ->  | S42: =+IF(A42=0,"",IF(K42<=$A$1,0,IF(E42=7,$G$1*(1+Datos!$H$25)+Datos!$H$24*(Datos!$H$25)+Datos!$H$25*Datos!$H$43,IF(Cronograma!E42=12,Cronograma!$G$1*(1+Datos!$H$26)+Datos!$H$24*(Datos!$H$26)+Datos!$H$26*Datos!$H$43,Cronograma!$G$1)))) ->  | T42: =+IF(S42="","",IF(Varios!$K$5=1,IF(S42=0,0,IF(Varios!$D$4=1,Varios!$D$2,Varios!$D$3)),0)) ->  | U42: =+IF(S42="","",IF(S42=0,0,Varios!$F$4)) ->  | V42: =IF(S42="","",IF(Varios!$K$15=1,IF(S42=0,0,Datos!$H$28*Varios!$K$12),0)) ->  | Z42: =IF(J42="","",Datos!$H$18/360*(L42-L41)*M41) ->  | AD42: =IF(J42="","",Datos!$H$22*12/360*(L42-L41)*M41) -> 
A43: 0 | B43: 0 | D43: =+IF($D$1=31,IF(F43/4=TRUNC(F43/4),VLOOKUP(E43,Varios!$C$10:$G$21,3,FALSE),VLOOKUP(E43,Varios!$C$10:$G$21,2,FALSE)),IF($D$1>28,IF(F43/4=TRUNC(F43/4),VLOOKUP(E43,Varios!$C$10:$G$21,5,FALSE),VLOOKUP(E43,Varios!$C$10:$G$21,4,FALSE)),$D$1)) -> 28 | E43: 4 | F43: 2028 | N43: =IF(A43=0,"",IF(AND(Datos!$H$25>0,E43=7),IF(O43<$G$1*Datos!$H$25,O43,$G$1*Datos!$H$25),IF(AND(Datos!$H$26>0,E43=12),IF(O43<$G$1*Datos!$H$26,O43,$G$1*Datos!$H$26),IF((AB43+AF43)<S43,(AB43+AF43),S43)))) ->  | S43: =+IF(A43=0,"",IF(K43<=$A$1,0,IF(E43=7,$G$1*(1+Datos!$H$25)+Datos!$H$24*(Datos!$H$25)+Datos!$H$25*Datos!$H$43,IF(Cronograma!E43=12,Cronograma!$G$1*(1+Datos!$H$26)+Datos!$H$24*(Datos!$H$26)+Datos!$H$26*Datos!$H$43,Cronograma!$G$1)))) ->  | T43: =+IF(S43="","",IF(Varios!$K$5=1,IF(S43=0,0,IF(Varios!$D$4=1,Varios!$D$2,Varios!$D$3)),0)) ->  | U43: =+IF(S43="","",IF(S43=0,0,Varios!$F$4)) ->  | V43: =IF(S43="","",IF(Varios!$K$15=1,IF(S43=0,0,Datos!$H$28*Varios!$K$12),0)) ->  | Z43: =IF(J43="","",Datos!$H$18/360*(L43-L42)*M42) ->  | AD43: =IF(J43="","",Datos!$H$22*12/360*(L43-L42)*M42) -> 
A44: 0 | B44: 0 | D44: =+IF($D$1=31,IF(F44/4=TRUNC(F44/4),VLOOKUP(E44,Varios!$C$10:$G$21,3,FALSE),VLOOKUP(E44,Varios!$C$10:$G$21,2,FALSE)),IF($D$1>28,IF(F44/4=TRUNC(F44/4),VLOOKUP(E44,Varios!$C$10:$G$21,5,FALSE),VLOOKUP(E44,Varios!$C$10:$G$21,4,FALSE)),$D$1)) -> 28 | E44: 5 | F44: 2028 | N44: =IF(A44=0,"",IF(AND(Datos!$H$25>0,E44=7),IF(O44<$G$1*Datos!$H$25,O44,$G$1*Datos!$H$25),IF(AND(Datos!$H$26>0,E44=12),IF(O44<$G$1*Datos!$H$26,O44,$G$1*Datos!$H$26),IF((AB44+AF44)<S44,(AB44+AF44),S44)))) ->  | S44: =+IF(A44=0,"",IF(K44<=$A$1,0,IF(E44=7,$G$1*(1+Datos!$H$25)+Datos!$H$24*(Datos!$H$25)+Datos!$H$25*Datos!$H$43,IF(Cronograma!E44=12,Cronograma!$G$1*(1+Datos!$H$26)+Datos!$H$24*(Datos!$H$26)+Datos!$H$26*Datos!$H$43,Cronograma!$G$1)))) ->  | T44: =+IF(S44="","",IF(Varios!$K$5=1,IF(S44=0,0,IF(Varios!$D$4=1,Varios!$D$2,Varios!$D$3)),0)) ->  | U44: =+IF(S44="","",IF(S44=0,0,Varios!$F$4)) ->  | V44: =IF(S44="","",IF(Varios!$K$15=1,IF(S44=0,0,Datos!$H$28*Varios!$K$12),0)) ->  | Z44: =IF(J44="","",Datos!$H$18/360*(L44-L43)*M43) ->  | AD44: =IF(J44="","",Datos!$H$22*12/360*(L44-L43)*M43) -> 
A45: 0 | B45: 0 | D45: =+IF($D$1=31,IF(F45/4=TRUNC(F45/4),VLOOKUP(E45,Varios!$C$10:$G$21,3,FALSE),VLOOKUP(E45,Varios!$C$10:$G$21,2,FALSE)),IF($D$1>28,IF(F45/4=TRUNC(F45/4),VLOOKUP(E45,Varios!$C$10:$G$21,5,FALSE),VLOOKUP(E45,Varios!$C$10:$G$21,4,FALSE)),$D$1)) -> 28 | E45: 6 | F45: 2028 | N45: =IF(A45=0,"",IF(AND(Datos!$H$25>0,E45=7),IF(O45<$G$1*Datos!$H$25,O45,$G$1*Datos!$H$25),IF(AND(Datos!$H$26>0,E45=12),IF(O45<$G$1*Datos!$H$26,O45,$G$1*Datos!$H$26),IF((AB45+AF45)<S45,(AB45+AF45),S45)))) ->  | O45: =IF(A45=0,"",IF(S45=0,0,AB45+AF45)) ->  | S45: =+IF(A45=0,"",IF(K45<=$A$1,0,IF(E45=7,$G$1*(1+Datos!$H$25)+Datos!$H$24*(Datos!$H$25)+Datos!$H$25*Datos!$H$43,IF(Cronograma!E45=12,Cronograma!$G$1*(1+Datos!$H$26)+Datos!$H$24*(Datos!$H$26)+Datos!$H$26*Datos!$H$43,Cronograma!$G$1)))) ->  | T45: =+IF(S45="","",IF(Varios!$K$5=1,IF(S45=0,0,IF(Varios!$D$4=1,Varios!$D$2,Varios!$D$3)),0)) ->  | U45: =+IF(S45="","",IF(S45=0,0,Varios!$F$4)) ->  | V45: =IF(S45="","",IF(Varios!$K$15=1,IF(S45=0,0,Datos!$H$28*Varios!$K$12),0)) ->  | Z45: =IF(J45="","",Datos!$H$18/360*(L45-L44)*M44) ->  | AA45: =IF(Z45="","",AB44-P44) ->  | AD45: =IF(J45="","",Datos!$H$22*12/360*(L45-L44)*M44) ->  | AE45: =IF(AD45="","",AF44-Q44) -> 
A46: 0 | B46: 0 | D46: =+IF($D$1=31,IF(F46/4=TRUNC(F46/4),VLOOKUP(E46,Varios!$C$10:$G$21,3,FALSE),VLOOKUP(E46,Varios!$C$10:$G$21,2,FALSE)),IF($D$1>28,IF(F46/4=TRUNC(F46/4),VLOOKUP(E46,Varios!$C$10:$G$21,5,FALSE),VLOOKUP(E46,Varios!$C$10:$G$21,4,FALSE)),$D$1)) -> 28 | E46: 7 | F46: 2028 | G46: =+IF(P46="","",G45+P46) ->  | H46: =+IF(Q46="","",H45+Q46) ->  | M46: =IF(B46=0,"",IF($A$1+1=J46,M45+G46+H46,IF($A$1+1<J46,M45-R46,M45))) ->  | N46: =IF(A46=0,"",IF(AND(Datos!$H$25>0,E46=7),IF(O46<$G$1*Datos!$H$25,O46,$G$1*Datos!$H$25),IF(AND(Datos!$H$26>0,E46=12),IF(O46<$G$1*Datos!$H$26,O46,$G$1*Datos!$H$26),IF((AB46+AF46)<S46,(AB46+AF46),S46)))) ->  | P46: =IF($A46=0,"",IF(S46=0,0,IF(AB46<=(N46-Q46),AB46,N46-Q46))) ->  | Q46: =IF($A46=0,"",IF(S46=0,0,IF(AF46<=N46,AF46,N46))) ->  | S46: =+IF(A46=0,"",IF(K46<=$A$1,0,IF(E46=7,$G$1*(1+Datos!$H$25)+Datos!$H$24*(Datos!$H$25)+Datos!$H$25*Datos!$H$43,IF(Cronograma!E46=12,Cronograma!$G$1*(1+Datos!$H$26)+Datos!$H$24*(Datos!$H$26)+Datos!$H$26*Datos!$H$43,Cronograma!$G$1)))) ->  | T46: =+IF(S46="","",IF(Varios!$K$5=1,IF(S46=0,0,IF(Varios!$D$4=1,Varios!$D$2,Varios!$D$3)),0)) ->  | U46: =+IF(S46="","",IF(S46=0,0,Varios!$F$4)) ->  | V46: =IF(S46="","",IF(Varios!$K$15=1,IF(S46=0,0,Datos!$H$28*Varios!$K$12),0)) ->  | Z46: =IF(J46="","",Datos!$H$18/360*(L46-L45)*M45) ->  | AD46: =IF(J46="","",Datos!$H$22*12/360*(L46-L45)*M45) ->  | AH46: =+IF(X46="","",W46/((1+$AH$11)^(AG46/365))) -> 
A47: 0 | B47: 0 | D47: =+IF($D$1=31,IF(F47/4=TRUNC(F47/4),VLOOKUP(E47,Varios!$C$10:$G$21,3,FALSE),VLOOKUP(E47,Varios!$C$10:$G$21,2,FALSE)),IF($D$1>28,IF(F47/4=TRUNC(F47/4),VLOOKUP(E47,Varios!$C$10:$G$21,5,FALSE),VLOOKUP(E47,Varios!$C$10:$G$21,4,FALSE)),$D$1)) -> 28 | E47: 8 | F47: 2028 | N47: =IF(A47=0,"",IF(AND(Datos!$H$25>0,E47=7),IF(O47<$G$1*Datos!$H$25,O47,$G$1*Datos!$H$25),IF(AND(Datos!$H$26>0,E47=12),IF(O47<$G$1*Datos!$H$26,O47,$G$1*Datos!$H$26),IF((AB47+AF47)<S47,(AB47+AF47),S47)))) ->  | S47: =+IF(A47=0,"",IF(K47<=$A$1,0,IF(E47=7,$G$1*(1+Datos!$H$25)+Datos!$H$24*(Datos!$H$25)+Datos!$H$25*Datos!$H$43,IF(Cronograma!E47=12,Cronograma!$G$1*(1+Datos!$H$26)+Datos!$H$24*(Datos!$H$26)+Datos!$H$26*Datos!$H$43,Cronograma!$G$1)))) ->  | T47: =+IF(S47="","",IF(Varios!$K$5=1,IF(S47=0,0,IF(Varios!$D$4=1,Varios!$D$2,Varios!$D$3)),0)) ->  | U47: =+IF(S47="","",IF(S47=0,0,Varios!$F$4)) ->  | V47: =IF(S47="","",IF(Varios!$K$15=1,IF(S47=0,0,Datos!$H$28*Varios!$K$12),0)) ->  | Z47: =IF(J47="","",Datos!$H$18/360*(L47-L46)*M46) ->  | AD47: =IF(J47="","",Datos!$H$22*12/360*(L47-L46)*M46) -> 
A48: 0 | B48: 0 | D48: =+IF($D$1=31,IF(F48/4=TRUNC(F48/4),VLOOKUP(E48,Varios!$C$10:$G$21,3,FALSE),VLOOKUP(E48,Varios!$C$10:$G$21,2,FALSE)),IF($D$1>28,IF(F48/4=TRUNC(F48/4),VLOOKUP(E48,Varios!$C$10:$G$21,5,FALSE),VLOOKUP(E48,Varios!$C$10:$G$21,4,FALSE)),$D$1)) -> 28 | E48: 9 | F48: 2028 | N48: =IF(A48=0,"",IF(AND(Datos!$H$25>0,E48=7),IF(O48<$G$1*Datos!$H$25,O48,$G$1*Datos!$H$25),IF(AND(Datos!$H$26>0,E48=12),IF(O48<$G$1*Datos!$H$26,O48,$G$1*Datos!$H$26),IF((AB48+AF48)<S48,(AB48+AF48),S48)))) ->  | S48: =+IF(A48=0,"",IF(K48<=$A$1,0,IF(E48=7,$G$1*(1+Datos!$H$25)+Datos!$H$24*(Datos!$H$25)+Datos!$H$25*Datos!$H$43,IF(Cronograma!E48=12,Cronograma!$G$1*(1+Datos!$H$26)+Datos!$H$24*(Datos!$H$26)+Datos!$H$26*Datos!$H$43,Cronograma!$G$1)))) ->  | T48: =+IF(S48="","",IF(Varios!$K$5=1,IF(S48=0,0,IF(Varios!$D$4=1,Varios!$D$2,Varios!$D$3)),0)) ->  | U48: =+IF(S48="","",IF(S48=0,0,Varios!$F$4)) ->  | V48: =IF(S48="","",IF(Varios!$K$15=1,IF(S48=0,0,Datos!$H$28*Varios!$K$12),0)) ->  | Z48: =IF(J48="","",Datos!$H$18/360*(L48-L47)*M47) ->  | AD48: =IF(J48="","",Datos!$H$22*12/360*(L48-L47)*M47) -> 
A49: 0 | B49: 0 | D49: =+IF($D$1=31,IF(F49/4=TRUNC(F49/4),VLOOKUP(E49,Varios!$C$10:$G$21,3,FALSE),VLOOKUP(E49,Varios!$C$10:$G$21,2,FALSE)),IF($D$1>28,IF(F49/4=TRUNC(F49/4),VLOOKUP(E49,Varios!$C$10:$G$21,5,FALSE),VLOOKUP(E49,Varios!$C$10:$G$21,4,FALSE)),$D$1)) -> 28 | E49: 10 | F49: 2028 | N49: =IF(A49=0,"",IF(AND(Datos!$H$25>0,E49=7),IF(O49<$G$1*Datos!$H$25,O49,$G$1*Datos!$H$25),IF(AND(Datos!$H$26>0,E49=12),IF(O49<$G$1*Datos!$H$26,O49,$G$1*Datos!$H$26),IF((AB49+AF49)<S49,(AB49+AF49),S49)))) ->  | S49: =+IF(A49=0,"",IF(K49<=$A$1,0,IF(E49=7,$G$1*(1+Datos!$H$25)+Datos!$H$24*(Datos!$H$25)+Datos!$H$25*Datos!$H$43,IF(Cronograma!E49=12,Cronograma!$G$1*(1+Datos!$H$26)+Datos!$H$24*(Datos!$H$26)+Datos!$H$26*Datos!$H$43,Cronograma!$G$1)))) ->  | T49: =+IF(S49="","",IF(Varios!$K$5=1,IF(S49=0,0,IF(Varios!$D$4=1,Varios!$D$2,Varios!$D$3)),0)) ->  | U49: =+IF(S49="","",IF(S49=0,0,Varios!$F$4)) ->  | V49: =IF(S49="","",IF(Varios!$K$15=1,IF(S49=0,0,Datos!$H$28*Varios!$K$12),0)) ->  | Z49: =IF(J49="","",Datos!$H$18/360*(L49-L48)*M48) ->  | AD49: =IF(J49="","",Datos!$H$22*12/360*(L49-L48)*M48) -> 
A50: 0 | B50: 0 | D50: =+IF($D$1=31,IF(F50/4=TRUNC(F50/4),VLOOKUP(E50,Varios!$C$10:$G$21,3,FALSE),VLOOKUP(E50,Varios!$C$10:$G$21,2,FALSE)),IF($D$1>28,IF(F50/4=TRUNC(F50/4),VLOOKUP(E50,Varios!$C$10:$G$21,5,FALSE),VLOOKUP(E50,Varios!$C$10:$G$21,4,FALSE)),$D$1)) -> 28 | E50: 11 | F50: 2028 | N50: =IF(A50=0,"",IF(AND(Datos!$H$25>0,E50=7),IF(O50<$G$1*Datos!$H$25,O50,$G$1*Datos!$H$25),IF(AND(Datos!$H$26>0,E50=12),IF(O50<$G$1*Datos!$H$26,O50,$G$1*Datos!$H$26),IF((AB50+AF50)<S50,(AB50+AF50),S50)))) ->  | S50: =+IF(A50=0,"",IF(K50<=$A$1,0,IF(E50=7,$G$1*(1+Datos!$H$25)+Datos!$H$24*(Datos!$H$25)+Datos!$H$25*Datos!$H$43,IF(Cronograma!E50=12,Cronograma!$G$1*(1+Datos!$H$26)+Datos!$H$24*(Datos!$H$26)+Datos!$H$26*Datos!$H$43,Cronograma!$G$1)))) ->  | T50: =+IF(S50="","",IF(Varios!$K$5=1,IF(S50=0,0,IF(Varios!$D$4=1,Varios!$D$2,Varios!$D$3)),0)) ->  | U50: =+IF(S50="","",IF(S50=0,0,Varios!$F$4)) ->  | V50: =IF(S50="","",IF(Varios!$K$15=1,IF(S50=0,0,Datos!$H$28*Varios!$K$12),0)) ->  | Z50: =IF(J50="","",Datos!$H$18/360*(L50-L49)*M49) ->  | AD50: =IF(J50="","",Datos!$H$22*12/360*(L50-L49)*M49) -> 
A51: 0 | B51: 0 | D51: =+IF($D$1=31,IF(F51/4=TRUNC(F51/4),VLOOKUP(E51,Varios!$C$10:$G$21,3,FALSE),VLOOKUP(E51,Varios!$C$10:$G$21,2,FALSE)),IF($D$1>28,IF(F51/4=TRUNC(F51/4),VLOOKUP(E51,Varios!$C$10:$G$21,5,FALSE),VLOOKUP(E51,Varios!$C$10:$G$21,4,FALSE)),$D$1)) -> 28 | E51: 12 | F51: 2028 | N51: =IF(A51=0,"",IF(AND(Datos!$H$25>0,E51=7),IF(O51<$G$1*Datos!$H$25,O51,$G$1*Datos!$H$25),IF(AND(Datos!$H$26>0,E51=12),IF(O51<$G$1*Datos!$H$26,O51,$G$1*Datos!$H$26),IF((AB51+AF51)<S51,(AB51+AF51),S51)))) ->  | S51: =+IF(A51=0,"",IF(K51<=$A$1,0,IF(E51=7,$G$1*(1+Datos!$H$25)+Datos!$H$24*(Datos!$H$25)+Datos!$H$25*Datos!$H$43,IF(Cronograma!E51=12,Cronograma!$G$1*(1+Datos!$H$26)+Datos!$H$24*(Datos!$H$26)+Datos!$H$26*Datos!$H$43,Cronograma!$G$1)))) ->  | T51: =+IF(S51="","",IF(Varios!$K$5=1,IF(S51=0,0,IF(Varios!$D$4=1,Varios!$D$2,Varios!$D$3)),0)) ->  | U51: =+IF(S51="","",IF(S51=0,0,Varios!$F$4)) ->  | V51: =IF(S51="","",IF(Varios!$K$15=1,IF(S51=0,0,Datos!$H$28*Varios!$K$12),0)) ->  | Z51: =IF(J51="","",Datos!$H$18/360*(L51-L50)*M50) ->  | AD51: =IF(J51="","",Datos!$H$22*12/360*(L51-L50)*M50) -> 
A52: 0 | B52: 0 | D52: =+IF($D$1=31,IF(F52/4=TRUNC(F52/4),VLOOKUP(E52,Varios!$C$10:$G$21,3,FALSE),VLOOKUP(E52,Varios!$C$10:$G$21,2,FALSE)),IF($D$1>28,IF(F52/4=TRUNC(F52/4),VLOOKUP(E52,Varios!$C$10:$G$21,5,FALSE),VLOOKUP(E52,Varios!$C$10:$G$21,4,FALSE)),$D$1)) -> 28 | E52: 1 | F52: =+IF(E51=E52,F51,IF(E51+1>12,F51+1,F51)) -> 2029 | N52: =IF(A52=0,"",IF(AND(Datos!$H$25>0,E52=7),IF(O52<$G$1*Datos!$H$25,O52,$G$1*Datos!$H$25),IF(AND(Datos!$H$26>0,E52=12),IF(O52<$G$1*Datos!$H$26,O52,$G$1*Datos!$H$26),IF((AB52+AF52)<S52,(AB52+AF52),S52)))) ->  | S52: =+IF(A52=0,"",IF(K52<=$A$1,0,IF(E52=7,$G$1*(1+Datos!$H$25)+Datos!$H$24*(Datos!$H$25)+Datos!$H$25*Datos!$H$43,IF(Cronograma!E52=12,Cronograma!$G$1*(1+Datos!$H$26)+Datos!$H$24*(Datos!$H$26)+Datos!$H$26*Datos!$H$43,Cronograma!$G$1)))) ->  | T52: =+IF(S52="","",IF(Varios!$K$5=1,IF(S52=0,0,IF(Varios!$D$4=1,Varios!$D$2,Varios!$D$3)),0)) ->  | U52: =+IF(S52="","",IF(S52=0,0,Varios!$F$4)) ->  | V52: =IF(S52="","",IF(Varios!$K$15=1,IF(S52=0,0,Datos!$H$28*Varios!$K$12),0)) ->  | Z52: =IF(J52="","",Datos!$H$18/360*(L52-L51)*M51) ->  | AD52: =IF(J52="","",Datos!$H$22*12/360*(L52-L51)*M51) -> 
A53: 0 | B53: 0 | D53: =+IF($D$1=31,IF(F53/4=TRUNC(F53/4),VLOOKUP(E53,Varios!$C$10:$G$21,3,FALSE),VLOOKUP(E53,Varios!$C$10:$G$21,2,FALSE)),IF($D$1>28,IF(F53/4=TRUNC(F53/4),VLOOKUP(E53,Varios!$C$10:$G$21,5,FALSE),VLOOKUP(E53,Varios!$C$10:$G$21,4,FALSE)),$D$1)) -> 28 | E53: 2 | F53: 2029 | N53: =IF(A53=0,"",IF(AND(Datos!$H$25>0,E53=7),IF(O53<$G$1*Datos!$H$25,O53,$G$1*Datos!$H$25),IF(AND(Datos!$H$26>0,E53=12),IF(O53<$G$1*Datos!$H$26,O53,$G$1*Datos!$H$26),IF((AB53+AF53)<S53,(AB53+AF53),S53)))) ->  | S53: =+IF(A53=0,"",IF(K53<=$A$1,0,IF(E53=7,$G$1*(1+Datos!$H$25)+Datos!$H$24*(Datos!$H$25)+Datos!$H$25*Datos!$H$43,IF(Cronograma!E53=12,Cronograma!$G$1*(1+Datos!$H$26)+Datos!$H$24*(Datos!$H$26)+Datos!$H$26*Datos!$H$43,Cronograma!$G$1)))) ->  | T53: =+IF(S53="","",IF(Varios!$K$5=1,IF(S53=0,0,IF(Varios!$D$4=1,Varios!$D$2,Varios!$D$3)),0)) ->  | U53: =+IF(S53="","",IF(S53=0,0,Varios!$F$4)) ->  | V53: =IF(S53="","",IF(Varios!$K$15=1,IF(S53=0,0,Datos!$H$28*Varios!$K$12),0)) ->  | Z53: =IF(J53="","",Datos!$H$18/360*(L53-L52)*M52) ->  | AD53: =IF(J53="","",Datos!$H$22*12/360*(L53-L52)*M52) -> 
A54: 0 | B54: 0 | D54: =+IF($D$1=31,IF(F54/4=TRUNC(F54/4),VLOOKUP(E54,Varios!$C$10:$G$21,3,FALSE),VLOOKUP(E54,Varios!$C$10:$G$21,2,FALSE)),IF($D$1>28,IF(F54/4=TRUNC(F54/4),VLOOKUP(E54,Varios!$C$10:$G$21,5,FALSE),VLOOKUP(E54,Varios!$C$10:$G$21,4,FALSE)),$D$1)) -> 28 | E54: 3 | F54: 2029 | N54: =IF(A54=0,"",IF(AND(Datos!$H$25>0,E54=7),IF(O54<$G$1*Datos!$H$25,O54,$G$1*Datos!$H$25),IF(AND(Datos!$H$26>0,E54=12),IF(O54<$G$1*Datos!$H$26,O54,$G$1*Datos!$H$26),IF((AB54+AF54)<S54,(AB54+AF54),S54)))) ->  | S54: =+IF(A54=0,"",IF(K54<=$A$1,0,IF(E54=7,$G$1*(1+Datos!$H$25)+Datos!$H$24*(Datos!$H$25)+Datos!$H$25*Datos!$H$43,IF(Cronograma!E54=12,Cronograma!$G$1*(1+Datos!$H$26)+Datos!$H$24*(Datos!$H$26)+Datos!$H$26*Datos!$H$43,Cronograma!$G$1)))) ->  | T54: =+IF(S54="","",IF(Varios!$K$5=1,IF(S54=0,0,IF(Varios!$D$4=1,Varios!$D$2,Varios!$D$3)),0)) ->  | U54: =+IF(S54="","",IF(S54=0,0,Varios!$F$4)) ->  | V54: =IF(S54="","",IF(Varios!$K$15=1,IF(S54=0,0,Datos!$H$28*Varios!$K$12),0)) ->  | Z54: =IF(J54="","",Datos!$H$18/360*(L54-L53)*M53) ->  | AD54: =IF(J54="","",Datos!$H$22*12/360*(L54-L53)*M53) -> 
A55: 0 | B55: 0 | D55: =+IF($D$1=31,IF(F55/4=TRUNC(F55/4),VLOOKUP(E55,Varios!$C$10:$G$21,3,FALSE),VLOOKUP(E55,Varios!$C$10:$G$21,2,FALSE)),IF($D$1>28,IF(F55/4=TRUNC(F55/4),VLOOKUP(E55,Varios!$C$10:$G$21,5,FALSE),VLOOKUP(E55,Varios!$C$10:$G$21,4,FALSE)),$D$1)) -> 28 | E55: 4 | F55: 2029 | N55: =IF(A55=0,"",IF(AND(Datos!$H$25>0,E55=7),IF(O55<$G$1*Datos!$H$25,O55,$G$1*Datos!$H$25),IF(AND(Datos!$H$26>0,E55=12),IF(O55<$G$1*Datos!$H$26,O55,$G$1*Datos!$H$26),IF((AB55+AF55)<S55,(AB55+AF55),S55)))) ->  | S55: =+IF(A55=0,"",IF(K55<=$A$1,0,IF(E55=7,$G$1*(1+Datos!$H$25)+Datos!$H$24*(Datos!$H$25)+Datos!$H$25*Datos!$H$43,IF(Cronograma!E55=12,Cronograma!$G$1*(1+Datos!$H$26)+Datos!$H$24*(Datos!$H$26)+Datos!$H$26*Datos!$H$43,Cronograma!$G$1)))) ->  | T55: =+IF(S55="","",IF(Varios!$K$5=1,IF(S55=0,0,IF(Varios!$D$4=1,Varios!$D$2,Varios!$D$3)),0)) ->  | U55: =+IF(S55="","",IF(S55=0,0,Varios!$F$4)) ->  | V55: =IF(S55="","",IF(Varios!$K$15=1,IF(S55=0,0,Datos!$H$28*Varios!$K$12),0)) ->  | Z55: =IF(J55="","",Datos!$H$18/360*(L55-L54)*M54) ->  | AD55: =IF(J55="","",Datos!$H$22*12/360*(L55-L54)*M54) -> 
A56: 0 | B56: 0 | D56: =+IF($D$1=31,IF(F56/4=TRUNC(F56/4),VLOOKUP(E56,Varios!$C$10:$G$21,3,FALSE),VLOOKUP(E56,Varios!$C$10:$G$21,2,FALSE)),IF($D$1>28,IF(F56/4=TRUNC(F56/4),VLOOKUP(E56,Varios!$C$10:$G$21,5,FALSE),VLOOKUP(E56,Varios!$C$10:$G$21,4,FALSE)),$D$1)) -> 28 | E56: 5 | F56: 2029 | N56: =IF(A56=0,"",IF(AND(Datos!$H$25>0,E56=7),IF(O56<$G$1*Datos!$H$25,O56,$G$1*Datos!$H$25),IF(AND(Datos!$H$26>0,E56=12),IF(O56<$G$1*Datos!$H$26,O56,$G$1*Datos!$H$26),IF((AB56+AF56)<S56,(AB56+AF56),S56)))) ->  | S56: =+IF(A56=0,"",IF(K56<=$A$1,0,IF(E56=7,$G$1*(1+Datos!$H$25)+Datos!$H$24*(Datos!$H$25)+Datos!$H$25*Datos!$H$43,IF(Cronograma!E56=12,Cronograma!$G$1*(1+Datos!$H$26)+Datos!$H$24*(Datos!$H$26)+Datos!$H$26*Datos!$H$43,Cronograma!$G$1)))) ->  | T56: =+IF(S56="","",IF(Varios!$K$5=1,IF(S56=0,0,IF(Varios!$D$4=1,Varios!$D$2,Varios!$D$3)),0)) ->  | U56: =+IF(S56="","",IF(S56=0,0,Varios!$F$4)) ->  | V56: =IF(S56="","",IF(Varios!$K$15=1,IF(S56=0,0,Datos!$H$28*Varios!$K$12),0)) ->  | Z56: =IF(J56="","",Datos!$H$18/360*(L56-L55)*M55) ->  | AD56: =IF(J56="","",Datos!$H$22*12/360*(L56-L55)*M55) -> 
A57: 0 | B57: 0 | D57: =+IF($D$1=31,IF(F57/4=TRUNC(F57/4),VLOOKUP(E57,Varios!$C$10:$G$21,3,FALSE),VLOOKUP(E57,Varios!$C$10:$G$21,2,FALSE)),IF($D$1>28,IF(F57/4=TRUNC(F57/4),VLOOKUP(E57,Varios!$C$10:$G$21,5,FALSE),VLOOKUP(E57,Varios!$C$10:$G$21,4,FALSE)),$D$1)) -> 28 | E57: 6 | F57: 2029 | N57: =IF(A57=0,"",IF(AND(Datos!$H$25>0,E57=7),IF(O57<$G$1*Datos!$H$25,O57,$G$1*Datos!$H$25),IF(AND(Datos!$H$26>0,E57=12),IF(O57<$G$1*Datos!$H$26,O57,$G$1*Datos!$H$26),IF((AB57+AF57)<S57,(AB57+AF57),S57)))) ->  | S57: =+IF(A57=0,"",IF(K57<=$A$1,0,IF(E57=7,$G$1*(1+Datos!$H$25)+Datos!$H$24*(Datos!$H$25)+Datos!$H$25*Datos!$H$43,IF(Cronograma!E57=12,Cronograma!$G$1*(1+Datos!$H$26)+Datos!$H$24*(Datos!$H$26)+Datos!$H$26*Datos!$H$43,Cronograma!$G$1)))) ->  | T57: =+IF(S57="","",IF(Varios!$K$5=1,IF(S57=0,0,IF(Varios!$D$4=1,Varios!$D$2,Varios!$D$3)),0)) ->  | U57: =+IF(S57="","",IF(S57=0,0,Varios!$F$4)) ->  | V57: =IF(S57="","",IF(Varios!$K$15=1,IF(S57=0,0,Datos!$H$28*Varios!$K$12),0)) ->  | Z57: =IF(J57="","",Datos!$H$18/360*(L57-L56)*M56) ->  | AD57: =IF(J57="","",Datos!$H$22*12/360*(L57-L56)*M56) -> 
A58: 0 | B58: 0 | D58: =+IF($D$1=31,IF(F58/4=TRUNC(F58/4),VLOOKUP(E58,Varios!$C$10:$G$21,3,FALSE),VLOOKUP(E58,Varios!$C$10:$G$21,2,FALSE)),IF($D$1>28,IF(F58/4=TRUNC(F58/4),VLOOKUP(E58,Varios!$C$10:$G$21,5,FALSE),VLOOKUP(E58,Varios!$C$10:$G$21,4,FALSE)),$D$1)) -> 28 | E58: 7 | F58: 2029 | N58: =IF(A58=0,"",IF(AND(Datos!$H$25>0,E58=7),IF(O58<$G$1*Datos!$H$25,O58,$G$1*Datos!$H$25),IF(AND(Datos!$H$26>0,E58=12),IF(O58<$G$1*Datos!$H$26,O58,$G$1*Datos!$H$26),IF((AB58+AF58)<S58,(AB58+AF58),S58)))) ->  | S58: =+IF(A58=0,"",IF(K58<=$A$1,0,IF(E58=7,$G$1*(1+Datos!$H$25)+Datos!$H$24*(Datos!$H$25)+Datos!$H$25*Datos!$H$43,IF(Cronograma!E58=12,Cronograma!$G$1*(1+Datos!$H$26)+Datos!$H$24*(Datos!$H$26)+Datos!$H$26*Datos!$H$43,Cronograma!$G$1)))) ->  | T58: =+IF(S58="","",IF(Varios!$K$5=1,IF(S58=0,0,IF(Varios!$D$4=1,Varios!$D$2,Varios!$D$3)),0)) ->  | U58: =+IF(S58="","",IF(S58=0,0,Varios!$F$4)) ->  | V58: =IF(S58="","",IF(Varios!$K$15=1,IF(S58=0,0,Datos!$H$28*Varios!$K$12),0)) ->  | Z58: =IF(J58="","",Datos!$H$18/360*(L58-L57)*M57) ->  | AD58: =IF(J58="","",Datos!$H$22*12/360*(L58-L57)*M57) -> 
A59: 0 | B59: 0 | D59: =+IF($D$1=31,IF(F59/4=TRUNC(F59/4),VLOOKUP(E59,Varios!$C$10:$G$21,3,FALSE),VLOOKUP(E59,Varios!$C$10:$G$21,2,FALSE)),IF($D$1>28,IF(F59/4=TRUNC(F59/4),VLOOKUP(E59,Varios!$C$10:$G$21,5,FALSE),VLOOKUP(E59,Varios!$C$10:$G$21,4,FALSE)),$D$1)) -> 28 | E59: 8 | F59: 2029 | N59: =IF(A59=0,"",IF(AND(Datos!$H$25>0,E59=7),IF(O59<$G$1*Datos!$H$25,O59,$G$1*Datos!$H$25),IF(AND(Datos!$H$26>0,E59=12),IF(O59<$G$1*Datos!$H$26,O59,$G$1*Datos!$H$26),IF((AB59+AF59)<S59,(AB59+AF59),S59)))) ->  | S59: =+IF(A59=0,"",IF(K59<=$A$1,0,IF(E59=7,$G$1*(1+Datos!$H$25)+Datos!$H$24*(Datos!$H$25)+Datos!$H$25*Datos!$H$43,IF(Cronograma!E59=12,Cronograma!$G$1*(1+Datos!$H$26)+Datos!$H$24*(Datos!$H$26)+Datos!$H$26*Datos!$H$43,Cronograma!$G$1)))) ->  | T59: =+IF(S59="","",IF(Varios!$K$5=1,IF(S59=0,0,IF(Varios!$D$4=1,Varios!$D$2,Varios!$D$3)),0)) ->  | U59: =+IF(S59="","",IF(S59=0,0,Varios!$F$4)) ->  | V59: =IF(S59="","",IF(Varios!$K$15=1,IF(S59=0,0,Datos!$H$28*Varios!$K$12),0)) ->  | Z59: =IF(J59="","",Datos!$H$18/360*(L59-L58)*M58) ->  | AD59: =IF(J59="","",Datos!$H$22*12/360*(L59-L58)*M58) -> 
A60: 0 | B60: 0 | D60: =+IF($D$1=31,IF(F60/4=TRUNC(F60/4),VLOOKUP(E60,Varios!$C$10:$G$21,3,FALSE),VLOOKUP(E60,Varios!$C$10:$G$21,2,FALSE)),IF($D$1>28,IF(F60/4=TRUNC(F60/4),VLOOKUP(E60,Varios!$C$10:$G$21,5,FALSE),VLOOKUP(E60,Varios!$C$10:$G$21,4,FALSE)),$D$1)) -> 28 | E60: 9 | F60: 2029 | N60: =IF(A60=0,"",IF(AND(Datos!$H$25>0,E60=7),IF(O60<$G$1*Datos!$H$25,O60,$G$1*Datos!$H$25),IF(AND(Datos!$H$26>0,E60=12),IF(O60<$G$1*Datos!$H$26,O60,$G$1*Datos!$H$26),IF((AB60+AF60)<S60,(AB60+AF60),S60)))) ->  | S60: =+IF(A60=0,"",IF(K60<=$A$1,0,IF(E60=7,$G$1*(1+Datos!$H$25)+Datos!$H$24*(Datos!$H$25)+Datos!$H$25*Datos!$H$43,IF(Cronograma!E60=12,Cronograma!$G$1*(1+Datos!$H$26)+Datos!$H$24*(Datos!$H$26)+Datos!$H$26*Datos!$H$43,Cronograma!$G$1)))) ->  | T60: =+IF(S60="","",IF(Varios!$K$5=1,IF(S60=0,0,IF(Varios!$D$4=1,Varios!$D$2,Varios!$D$3)),0)) ->  | U60: =+IF(S60="","",IF(S60=0,0,Varios!$F$4)) ->  | V60: =IF(S60="","",IF(Varios!$K$15=1,IF(S60=0,0,Datos!$H$28*Varios!$K$12),0)) ->  | Z60: =IF(J60="","",Datos!$H$18/360*(L60-L59)*M59) ->  | AD60: =IF(J60="","",Datos!$H$22*12/360*(L60-L59)*M59) -> 
A61: 0 | B61: 0 | D61: =+IF($D$1=31,IF(F61/4=TRUNC(F61/4),VLOOKUP(E61,Varios!$C$10:$G$21,3,FALSE),VLOOKUP(E61,Varios!$C$10:$G$21,2,FALSE)),IF($D$1>28,IF(F61/4=TRUNC(F61/4),VLOOKUP(E61,Varios!$C$10:$G$21,5,FALSE),VLOOKUP(E61,Varios!$C$10:$G$21,4,FALSE)),$D$1)) -> 28 | E61: 10 | F61: 2029 | N61: =IF(A61=0,"",IF(AND(Datos!$H$25>0,E61=7),IF(O61<$G$1*Datos!$H$25,O61,$G$1*Datos!$H$25),IF(AND(Datos!$H$26>0,E61=12),IF(O61<$G$1*Datos!$H$26,O61,$G$1*Datos!$H$26),IF((AB61+AF61)<S61,(AB61+AF61),S61)))) ->  | S61: =+IF(A61=0,"",IF(K61<=$A$1,0,IF(E61=7,$G$1*(1+Datos!$H$25)+Datos!$H$24*(Datos!$H$25)+Datos!$H$25*Datos!$H$43,IF(Cronograma!E61=12,Cronograma!$G$1*(1+Datos!$H$26)+Datos!$H$24*(Datos!$H$26)+Datos!$H$26*Datos!$H$43,Cronograma!$G$1)))) ->  | T61: =+IF(S61="","",IF(Varios!$K$5=1,IF(S61=0,0,IF(Varios!$D$4=1,Varios!$D$2,Varios!$D$3)),0)) ->  | U61: =+IF(S61="","",IF(S61=0,0,Varios!$F$4)) ->  | V61: =IF(S61="","",IF(Varios!$K$15=1,IF(S61=0,0,Datos!$H$28*Varios!$K$12),0)) ->  | Z61: =IF(J61="","",Datos!$H$18/360*(L61-L60)*M60) ->  | AD61: =IF(J61="","",Datos!$H$22*12/360*(L61-L60)*M60) -> 
A62: 0 | B62: 0 | D62: =+IF($D$1=31,IF(F62/4=TRUNC(F62/4),VLOOKUP(E62,Varios!$C$10:$G$21,3,FALSE),VLOOKUP(E62,Varios!$C$10:$G$21,2,FALSE)),IF($D$1>28,IF(F62/4=TRUNC(F62/4),VLOOKUP(E62,Varios!$C$10:$G$21,5,FALSE),VLOOKUP(E62,Varios!$C$10:$G$21,4,FALSE)),$D$1)) -> 28 | E62: 11 | F62: 2029 | N62: =IF(A62=0,"",IF(AND(Datos!$H$25>0,E62=7),IF(O62<$G$1*Datos!$H$25,O62,$G$1*Datos!$H$25),IF(AND(Datos!$H$26>0,E62=12),IF(O62<$G$1*Datos!$H$26,O62,$G$1*Datos!$H$26),IF((AB62+AF62)<S62,(AB62+AF62),S62)))) ->  | S62: =+IF(A62=0,"",IF(K62<=$A$1,0,IF(E62=7,$G$1*(1+Datos!$H$25)+Datos!$H$24*(Datos!$H$25)+Datos!$H$25*Datos!$H$43,IF(Cronograma!E62=12,Cronograma!$G$1*(1+Datos!$H$26)+Datos!$H$24*(Datos!$H$26)+Datos!$H$26*Datos!$H$43,Cronograma!$G$1)))) ->  | T62: =+IF(S62="","",IF(Varios!$K$5=1,IF(S62=0,0,IF(Varios!$D$4=1,Varios!$D$2,Varios!$D$3)),0)) ->  | U62: =+IF(S62="","",IF(S62=0,0,Varios!$F$4)) ->  | V62: =IF(S62="","",IF(Varios!$K$15=1,IF(S62=0,0,Datos!$H$28*Varios!$K$12),0)) ->  | Z62: =IF(J62="","",Datos!$H$18/360*(L62-L61)*M61) ->  | AD62: =IF(J62="","",Datos!$H$22*12/360*(L62-L61)*M61) -> 
A63: 0 | B63: 0 | D63: =+IF($D$1=31,IF(F63/4=TRUNC(F63/4),VLOOKUP(E63,Varios!$C$10:$G$21,3,FALSE),VLOOKUP(E63,Varios!$C$10:$G$21,2,FALSE)),IF($D$1>28,IF(F63/4=TRUNC(F63/4),VLOOKUP(E63,Varios!$C$10:$G$21,5,FALSE),VLOOKUP(E63,Varios!$C$10:$G$21,4,FALSE)),$D$1)) -> 28 | E63: 12 | F63: 2029 | N63: =IF(A63=0,"",IF(AND(Datos!$H$25>0,E63=7),IF(O63<$G$1*Datos!$H$25,O63,$G$1*Datos!$H$25),IF(AND(Datos!$H$26>0,E63=12),IF(O63<$G$1*Datos!$H$26,O63,$G$1*Datos!$H$26),IF((AB63+AF63)<S63,(AB63+AF63),S63)))) ->  | S63: =+IF(A63=0,"",IF(K63<=$A$1,0,IF(E63=7,$G$1*(1+Datos!$H$25)+Datos!$H$24*(Datos!$H$25)+Datos!$H$25*Datos!$H$43,IF(Cronograma!E63=12,Cronograma!$G$1*(1+Datos!$H$26)+Datos!$H$24*(Datos!$H$26)+Datos!$H$26*Datos!$H$43,Cronograma!$G$1)))) ->  | T63: =+IF(S63="","",IF(Varios!$K$5=1,IF(S63=0,0,IF(Varios!$D$4=1,Varios!$D$2,Varios!$D$3)),0)) ->  | U63: =+IF(S63="","",IF(S63=0,0,Varios!$F$4)) ->  | V63: =IF(S63="","",IF(Varios!$K$15=1,IF(S63=0,0,Datos!$H$28*Varios!$K$12),0)) ->  | Z63: =IF(J63="","",Datos!$H$18/360*(L63-L62)*M62) ->  | AD63: =IF(J63="","",Datos!$H$22*12/360*(L63-L62)*M62) -> 
A64: 0 | B64: 0 | D64: =+IF($D$1=31,IF(F64/4=TRUNC(F64/4),VLOOKUP(E64,Varios!$C$10:$G$21,3,FALSE),VLOOKUP(E64,Varios!$C$10:$G$21,2,FALSE)),IF($D$1>28,IF(F64/4=TRUNC(F64/4),VLOOKUP(E64,Varios!$C$10:$G$21,5,FALSE),VLOOKUP(E64,Varios!$C$10:$G$21,4,FALSE)),$D$1)) -> 28 | E64: 1 | F64: 2030 | N64: =IF(A64=0,"",IF(AND(Datos!$H$25>0,E64=7),IF(O64<$G$1*Datos!$H$25,O64,$G$1*Datos!$H$25),IF(AND(Datos!$H$26>0,E64=12),IF(O64<$G$1*Datos!$H$26,O64,$G$1*Datos!$H$26),IF((AB64+AF64)<S64,(AB64+AF64),S64)))) ->  | S64: =+IF(A64=0,"",IF(K64<=$A$1,0,IF(E64=7,$G$1*(1+Datos!$H$25)+Datos!$H$24*(Datos!$H$25)+Datos!$H$25*Datos!$H$43,IF(Cronograma!E64=12,Cronograma!$G$1*(1+Datos!$H$26)+Datos!$H$24*(Datos!$H$26)+Datos!$H$26*Datos!$H$43,Cronograma!$G$1)))) ->  | T64: =+IF(S64="","",IF(Varios!$K$5=1,IF(S64=0,0,IF(Varios!$D$4=1,Varios!$D$2,Varios!$D$3)),0)) ->  | U64: =+IF(S64="","",IF(S64=0,0,Varios!$F$4)) ->  | V64: =IF(S64="","",IF(Varios!$K$15=1,IF(S64=0,0,Datos!$H$28*Varios!$K$12),0)) ->  | Z64: =IF(J64="","",Datos!$H$18/360*(L64-L63)*M63) ->  | AD64: =IF(J64="","",Datos!$H$22*12/360*(L64-L63)*M63) -> 
A65: 0 | B65: 0 | D65: =+IF($D$1=31,IF(F65/4=TRUNC(F65/4),VLOOKUP(E65,Varios!$C$10:$G$21,3,FALSE),VLOOKUP(E65,Varios!$C$10:$G$21,2,FALSE)),IF($D$1>28,IF(F65/4=TRUNC(F65/4),VLOOKUP(E65,Varios!$C$10:$G$21,5,FALSE),VLOOKUP(E65,Varios!$C$10:$G$21,4,FALSE)),$D$1)) -> 28 | E65: 2 | F65: =+IF(E64=E65,F64,IF(E64+1>12,F64+1,F64)) -> 2030 | N65: =IF(A65=0,"",IF(AND(Datos!$H$25>0,E65=7),IF(O65<$G$1*Datos!$H$25,O65,$G$1*Datos!$H$25),IF(AND(Datos!$H$26>0,E65=12),IF(O65<$G$1*Datos!$H$26,O65,$G$1*Datos!$H$26),IF((AB65+AF65)<S65,(AB65+AF65),S65)))) ->  | S65: =+IF(A65=0,"",IF(K65<=$A$1,0,IF(E65=7,$G$1*(1+Datos!$H$25)+Datos!$H$24*(Datos!$H$25)+Datos!$H$25*Datos!$H$43,IF(Cronograma!E65=12,Cronograma!$G$1*(1+Datos!$H$26)+Datos!$H$24*(Datos!$H$26)+Datos!$H$26*Datos!$H$43,Cronograma!$G$1)))) ->  | T65: =+IF(S65="","",IF(Varios!$K$5=1,IF(S65=0,0,IF(Varios!$D$4=1,Varios!$D$2,Varios!$D$3)),0)) ->  | U65: =+IF(S65="","",IF(S65=0,0,Varios!$F$4)) ->  | V65: =IF(S65="","",IF(Varios!$K$15=1,IF(S65=0,0,Datos!$H$28*Varios!$K$12),0)) ->  | Z65: =IF(J65="","",Datos!$H$18/360*(L65-L64)*M64) ->  | AD65: =IF(J65="","",Datos!$H$22*12/360*(L65-L64)*M64) -> 
A66: 0 | B66: 0 | D66: =+IF($D$1=31,IF(F66/4=TRUNC(F66/4),VLOOKUP(E66,Varios!$C$10:$G$21,3,FALSE),VLOOKUP(E66,Varios!$C$10:$G$21,2,FALSE)),IF($D$1>28,IF(F66/4=TRUNC(F66/4),VLOOKUP(E66,Varios!$C$10:$G$21,5,FALSE),VLOOKUP(E66,Varios!$C$10:$G$21,4,FALSE)),$D$1)) -> 28 | E66: 3 | F66: 2030 | N66: =IF(A66=0,"",IF(AND(Datos!$H$25>0,E66=7),IF(O66<$G$1*Datos!$H$25,O66,$G$1*Datos!$H$25),IF(AND(Datos!$H$26>0,E66=12),IF(O66<$G$1*Datos!$H$26,O66,$G$1*Datos!$H$26),IF((AB66+AF66)<S66,(AB66+AF66),S66)))) ->  | S66: =+IF(A66=0,"",IF(K66<=$A$1,0,IF(E66=7,$G$1*(1+Datos!$H$25)+Datos!$H$24*(Datos!$H$25)+Datos!$H$25*Datos!$H$43,IF(Cronograma!E66=12,Cronograma!$G$1*(1+Datos!$H$26)+Datos!$H$24*(Datos!$H$26)+Datos!$H$26*Datos!$H$43,Cronograma!$G$1)))) ->  | T66: =+IF(S66="","",IF(Varios!$K$5=1,IF(S66=0,0,IF(Varios!$D$4=1,Varios!$D$2,Varios!$D$3)),0)) ->  | U66: =+IF(S66="","",IF(S66=0,0,Varios!$F$4)) ->  | V66: =IF(S66="","",IF(Varios!$K$15=1,IF(S66=0,0,Datos!$H$28*Varios!$K$12),0)) ->  | Z66: =IF(J66="","",Datos!$H$18/360*(L66-L65)*M65) ->  | AD66: =IF(J66="","",Datos!$H$22*12/360*(L66-L65)*M65) -> 
A67: 0 | B67: 0 | D67: =+IF($D$1=31,IF(F67/4=TRUNC(F67/4),VLOOKUP(E67,Varios!$C$10:$G$21,3,FALSE),VLOOKUP(E67,Varios!$C$10:$G$21,2,FALSE)),IF($D$1>28,IF(F67/4=TRUNC(F67/4),VLOOKUP(E67,Varios!$C$10:$G$21,5,FALSE),VLOOKUP(E67,Varios!$C$10:$G$21,4,FALSE)),$D$1)) -> 28 | E67: 4 | F67: 2030 | N67: =IF(A67=0,"",IF(AND(Datos!$H$25>0,E67=7),IF(O67<$G$1*Datos!$H$25,O67,$G$1*Datos!$H$25),IF(AND(Datos!$H$26>0,E67=12),IF(O67<$G$1*Datos!$H$26,O67,$G$1*Datos!$H$26),IF((AB67+AF67)<S67,(AB67+AF67),S67)))) ->  | S67: =+IF(A67=0,"",IF(K67<=$A$1,0,IF(E67=7,$G$1*(1+Datos!$H$25)+Datos!$H$24*(Datos!$H$25)+Datos!$H$25*Datos!$H$43,IF(Cronograma!E67=12,Cronograma!$G$1*(1+Datos!$H$26)+Datos!$H$24*(Datos!$H$26)+Datos!$H$26*Datos!$H$43,Cronograma!$G$1)))) ->  | T67: =+IF(S67="","",IF(Varios!$K$5=1,IF(S67=0,0,IF(Varios!$D$4=1,Varios!$D$2,Varios!$D$3)),0)) ->  | U67: =+IF(S67="","",IF(S67=0,0,Varios!$F$4)) ->  | V67: =IF(S67="","",IF(Varios!$K$15=1,IF(S67=0,0,Datos!$H$28*Varios!$K$12),0)) ->  | Z67: =IF(J67="","",Datos!$H$18/360*(L67-L66)*M66) ->  | AD67: =IF(J67="","",Datos!$H$22*12/360*(L67-L66)*M66) -> 
A68: 0 | B68: 0 | D68: =+IF($D$1=31,IF(F68/4=TRUNC(F68/4),VLOOKUP(E68,Varios!$C$10:$G$21,3,FALSE),VLOOKUP(E68,Varios!$C$10:$G$21,2,FALSE)),IF($D$1>28,IF(F68/4=TRUNC(F68/4),VLOOKUP(E68,Varios!$C$10:$G$21,5,FALSE),VLOOKUP(E68,Varios!$C$10:$G$21,4,FALSE)),$D$1)) -> 28 | E68: 5 | F68: 2030 | N68: =IF(A68=0,"",IF(AND(Datos!$H$25>0,E68=7),IF(O68<$G$1*Datos!$H$25,O68,$G$1*Datos!$H$25),IF(AND(Datos!$H$26>0,E68=12),IF(O68<$G$1*Datos!$H$26,O68,$G$1*Datos!$H$26),IF((AB68+AF68)<S68,(AB68+AF68),S68)))) ->  | S68: =+IF(A68=0,"",IF(K68<=$A$1,0,IF(E68=7,$G$1*(1+Datos!$H$25)+Datos!$H$24*(Datos!$H$25)+Datos!$H$25*Datos!$H$43,IF(Cronograma!E68=12,Cronograma!$G$1*(1+Datos!$H$26)+Datos!$H$24*(Datos!$H$26)+Datos!$H$26*Datos!$H$43,Cronograma!$G$1)))) ->  | T68: =+IF(S68="","",IF(Varios!$K$5=1,IF(S68=0,0,IF(Varios!$D$4=1,Varios!$D$2,Varios!$D$3)),0)) ->  | U68: =+IF(S68="","",IF(S68=0,0,Varios!$F$4)) ->  | V68: =IF(S68="","",IF(Varios!$K$15=1,IF(S68=0,0,Datos!$H$28*Varios!$K$12),0)) ->  | Z68: =IF(J68="","",Datos!$H$18/360*(L68-L67)*M67) ->  | AD68: =IF(J68="","",Datos!$H$22*12/360*(L68-L67)*M67) -> 
A69: 0 | B69: 0 | D69: =+IF($D$1=31,IF(F69/4=TRUNC(F69/4),VLOOKUP(E69,Varios!$C$10:$G$21,3,FALSE),VLOOKUP(E69,Varios!$C$10:$G$21,2,FALSE)),IF($D$1>28,IF(F69/4=TRUNC(F69/4),VLOOKUP(E69,Varios!$C$10:$G$21,5,FALSE),VLOOKUP(E69,Varios!$C$10:$G$21,4,FALSE)),$D$1)) -> 28 | E69: 6 | F69: 2030 | N69: =IF(A69=0,"",IF(AND(Datos!$H$25>0,E69=7),IF(O69<$G$1*Datos!$H$25,O69,$G$1*Datos!$H$25),IF(AND(Datos!$H$26>0,E69=12),IF(O69<$G$1*Datos!$H$26,O69,$G$1*Datos!$H$26),IF((AB69+AF69)<S69,(AB69+AF69),S69)))) ->  | S69: =+IF(A69=0,"",IF(K69<=$A$1,0,IF(E69=7,$G$1*(1+Datos!$H$25)+Datos!$H$24*(Datos!$H$25)+Datos!$H$25*Datos!$H$43,IF(Cronograma!E69=12,Cronograma!$G$1*(1+Datos!$H$26)+Datos!$H$24*(Datos!$H$26)+Datos!$H$26*Datos!$H$43,Cronograma!$G$1)))) ->  | T69: =+IF(S69="","",IF(Varios!$K$5=1,IF(S69=0,0,IF(Varios!$D$4=1,Varios!$D$2,Varios!$D$3)),0)) ->  | U69: =+IF(S69="","",IF(S69=0,0,Varios!$F$4)) ->  | V69: =IF(S69="","",IF(Varios!$K$15=1,IF(S69=0,0,Datos!$H$28*Varios!$K$12),0)) ->  | Z69: =IF(J69="","",Datos!$H$18/360*(L69-L68)*M68) ->  | AD69: =IF(J69="","",Datos!$H$22*12/360*(L69-L68)*M68) -> 
A70: 0 | B70: 0 | D70: =+IF($D$1=31,IF(F70/4=TRUNC(F70/4),VLOOKUP(E70,Varios!$C$10:$G$21,3,FALSE),VLOOKUP(E70,Varios!$C$10:$G$21,2,FALSE)),IF($D$1>28,IF(F70/4=TRUNC(F70/4),VLOOKUP(E70,Varios!$C$10:$G$21,5,FALSE),VLOOKUP(E70,Varios!$C$10:$G$21,4,FALSE)),$D$1)) -> 28 | E70: 7 | F70: 2030 | N70: =IF(A70=0,"",IF(AND(Datos!$H$25>0,E70=7),IF(O70<$G$1*Datos!$H$25,O70,$G$1*Datos!$H$25),IF(AND(Datos!$H$26>0,E70=12),IF(O70<$G$1*Datos!$H$26,O70,$G$1*Datos!$H$26),IF((AB70+AF70)<S70,(AB70+AF70),S70)))) ->  | S70: =+IF(A70=0,"",IF(K70<=$A$1,0,IF(E70=7,$G$1*(1+Datos!$H$25)+Datos!$H$24*(Datos!$H$25)+Datos!$H$25*Datos!$H$43,IF(Cronograma!E70=12,Cronograma!$G$1*(1+Datos!$H$26)+Datos!$H$24*(Datos!$H$26)+Datos!$H$26*Datos!$H$43,Cronograma!$G$1)))) ->  | T70: =+IF(S70="","",IF(Varios!$K$5=1,IF(S70=0,0,IF(Varios!$D$4=1,Varios!$D$2,Varios!$D$3)),0)) ->  | U70: =+IF(S70="","",IF(S70=0,0,Varios!$F$4)) ->  | V70: =IF(S70="","",IF(Varios!$K$15=1,IF(S70=0,0,Datos!$H$28*Varios!$K$12),0)) ->  | Z70: =IF(J70="","",Datos!$H$18/360*(L70-L69)*M69) ->  | AD70: =IF(J70="","",Datos!$H$22*12/360*(L70-L69)*M69) -> 
A71: 0 | B71: 0 | D71: =+IF($D$1=31,IF(F71/4=TRUNC(F71/4),VLOOKUP(E71,Varios!$C$10:$G$21,3,FALSE),VLOOKUP(E71,Varios!$C$10:$G$21,2,FALSE)),IF($D$1>28,IF(F71/4=TRUNC(F71/4),VLOOKUP(E71,Varios!$C$10:$G$21,5,FALSE),VLOOKUP(E71,Varios!$C$10:$G$21,4,FALSE)),$D$1)) -> 28 | E71: 8 | F71: 2030 | N71: =IF(A71=0,"",IF(AND(Datos!$H$25>0,E71=7),IF(O71<$G$1*Datos!$H$25,O71,$G$1*Datos!$H$25),IF(AND(Datos!$H$26>0,E71=12),IF(O71<$G$1*Datos!$H$26,O71,$G$1*Datos!$H$26),IF((AB71+AF71)<S71,(AB71+AF71),S71)))) ->  | S71: =+IF(A71=0,"",IF(K71<=$A$1,0,IF(E71=7,$G$1*(1+Datos!$H$25)+Datos!$H$24*(Datos!$H$25)+Datos!$H$25*Datos!$H$43,IF(Cronograma!E71=12,Cronograma!$G$1*(1+Datos!$H$26)+Datos!$H$24*(Datos!$H$26)+Datos!$H$26*Datos!$H$43,Cronograma!$G$1)))) ->  | T71: =+IF(S71="","",IF(Varios!$K$5=1,IF(S71=0,0,IF(Varios!$D$4=1,Varios!$D$2,Varios!$D$3)),0)) ->  | U71: =+IF(S71="","",IF(S71=0,0,Varios!$F$4)) ->  | V71: =IF(S71="","",IF(Varios!$K$15=1,IF(S71=0,0,Datos!$H$28*Varios!$K$12),0)) ->  | Z71: =IF(J71="","",Datos!$H$18/360*(L71-L70)*M70) ->  | AD71: =IF(J71="","",Datos!$H$22*12/360*(L71-L70)*M70) -> 
A72: 0 | B72: 0 | D72: =+IF($D$1=31,IF(F72/4=TRUNC(F72/4),VLOOKUP(E72,Varios!$C$10:$G$21,3,FALSE),VLOOKUP(E72,Varios!$C$10:$G$21,2,FALSE)),IF($D$1>28,IF(F72/4=TRUNC(F72/4),VLOOKUP(E72,Varios!$C$10:$G$21,5,FALSE),VLOOKUP(E72,Varios!$C$10:$G$21,4,FALSE)),$D$1)) -> 28 | E72: 9 | F72: 2030 | N72: =IF(A72=0,"",IF(AND(Datos!$H$25>0,E72=7),IF(O72<$G$1*Datos!$H$25,O72,$G$1*Datos!$H$25),IF(AND(Datos!$H$26>0,E72=12),IF(O72<$G$1*Datos!$H$26,O72,$G$1*Datos!$H$26),IF((AB72+AF72)<S72,(AB72+AF72),S72)))) ->  | S72: =+IF(A72=0,"",IF(K72<=$A$1,0,IF(E72=7,$G$1*(1+Datos!$H$25)+Datos!$H$24*(Datos!$H$25)+Datos!$H$25*Datos!$H$43,IF(Cronograma!E72=12,Cronograma!$G$1*(1+Datos!$H$26)+Datos!$H$24*(Datos!$H$26)+Datos!$H$26*Datos!$H$43,Cronograma!$G$1)))) ->  | T72: =+IF(S72="","",IF(Varios!$K$5=1,IF(S72=0,0,IF(Varios!$D$4=1,Varios!$D$2,Varios!$D$3)),0)) ->  | U72: =+IF(S72="","",IF(S72=0,0,Varios!$F$4)) ->  | V72: =IF(S72="","",IF(Varios!$K$15=1,IF(S72=0,0,Datos!$H$28*Varios!$K$12),0)) ->  | Z72: =IF(J72="","",Datos!$H$18/360*(L72-L71)*M71) ->  | AD72: =IF(J72="","",Datos!$H$22*12/360*(L72-L71)*M71) -> 
A73: 0 | B73: 0 | D73: =+IF($D$1=31,IF(F73/4=TRUNC(F73/4),VLOOKUP(E73,Varios!$C$10:$G$21,3,FALSE),VLOOKUP(E73,Varios!$C$10:$G$21,2,FALSE)),IF($D$1>28,IF(F73/4=TRUNC(F73/4),VLOOKUP(E73,Varios!$C$10:$G$21,5,FALSE),VLOOKUP(E73,Varios!$C$10:$G$21,4,FALSE)),$D$1)) -> 28 | E73: 10 | F73: 2030 | N73: =IF(A73=0,"",IF(AND(Datos!$H$25>0,E73=7),IF(O73<$G$1*Datos!$H$25,O73,$G$1*Datos!$H$25),IF(AND(Datos!$H$26>0,E73=12),IF(O73<$G$1*Datos!$H$26,O73,$G$1*Datos!$H$26),IF((AB73+AF73)<S73,(AB73+AF73),S73)))) ->  | S73: =+IF(A73=0,"",IF(K73<=$A$1,0,IF(E73=7,$G$1*(1+Datos!$H$25)+Datos!$H$24*(Datos!$H$25)+Datos!$H$25*Datos!$H$43,IF(Cronograma!E73=12,Cronograma!$G$1*(1+Datos!$H$26)+Datos!$H$24*(Datos!$H$26)+Datos!$H$26*Datos!$H$43,Cronograma!$G$1)))) ->  | T73: =+IF(S73="","",IF(Varios!$K$5=1,IF(S73=0,0,IF(Varios!$D$4=1,Varios!$D$2,Varios!$D$3)),0)) ->  | U73: =+IF(S73="","",IF(S73=0,0,Varios!$F$4)) ->  | V73: =IF(S73="","",IF(Varios!$K$15=1,IF(S73=0,0,Datos!$H$28*Varios!$K$12),0)) ->  | Z73: =IF(J73="","",Datos!$H$18/360*(L73-L72)*M72) ->  | AD73: =IF(J73="","",Datos!$H$22*12/360*(L73-L72)*M72) -> 

Sheet Varios
C1: Moneda | D1: Portes+Seg | E1: Portes | F1: Adm. Pol. End | G1: Desgravamen | K1: Envío de estado de cuenta
B2: 1 | C2: Soles | D2: =+E2 -> 10 | E2: 10 | F2: 0 | G2: Individual | H2: 0.00115 | J2: 1
B3: 2 | D3: =+E3 -> 3.8 | E3: 3.8 | F3: 0 | G3: Con Retorno | H3: 0.00145 | J3: 2 | K3: Virtual
C4: 1 | D4: =+C4 -> 1 | F4: =+IF(G5=2,IF(C4=1,F2,F3),0) -> 0 | G4: Endosado | H4: 0
G5: 1 | K5: 2
D8: Para pago 31 | F8: Para pago 29 o 30
C9: Mes | D9: Año Normal | E9: Año Bisiesto | F9: Año Normal | G9: Año Bisiesto | I9: Seguro optativo de Protección Financiera – SPF
C10: 1 | D10: 31 | E10: =+D10 -> 31 | F10: =+Datos!$H$8 -> 28 | G10: =+Datos!$H$8 -> 28
C11: 2 | D11: 28 | E11: 29 | F11: 28 | G11: 29 | K11: Tasa | M11: Cuota con SPF | N11: Cuota sin SPF
C12: 3 | D12: 31 | E12: =+D12 -> 31 | F12: =+Datos!$H$8 -> 28 | G12: =+Datos!$H$8 -> 28 | J12: Con SPF | K12: 0.00192 | M12: 111.0061845 | N12: 111.0061845
C13: 4 | D13: 30 | E13: =+D13 -> 30 | F13: =+Datos!$H$8 -> 28 | G13: =+Datos!$H$8 -> 28 | J13: Sin SPF | K13: 0
C14: 5 | D14: 31 | E14: 31 | F14: =+Datos!$H$8 -> 28 | G14: =+Datos!$H$8 -> 28
C15: 6 | D15: 30 | E15: 30 | F15: =+Datos!$H$8 -> 28 | G15: =+Datos!$H$8 -> 28 | K15: 2 | L15: =+IF(K15<>1,"",Datos!$H$28*Varios!$K$12) -> 
C16: 7 | D16: 31 | E16: 31 | F16: =+Datos!$H$8 -> 28 | G16: =+Datos!$H$8 -> 28
C17: 8 | D17: 31 | E17: 31 | F17: =+Datos!$H$8 -> 28 | G17: =+Datos!$H$8 -> 28
C18: 9 | D18: 30 | E18: 30 | F18: =+Datos!$H$8 -> 28 | G18: =+Datos!$H$8 -> 28
C19: 10 | D19: 31 | E19: 31 | F19: =+Datos!$H$8 -> 28 | G19: =+Datos!$H$8 -> 28
C20: 11 | D20: 30 | E20: 30 | F20: =+Datos!$H$8 -> 28 | G20: =+Datos!$H$8 -> 28
C21: 12 | D21: 31 | E21: 31 | F21: =+Datos!$H$8 -> 28 | G21: =+Datos!$H$8 -> 28
F23: SOLES | G23: DOLARES
B24: =+C24&D24 -> 1Ingresos de S/. 700 a S/. 1,199 | C24: 1 | D24: Ingresos de S/. 700 a S/. 1,199 | F24: 0.605 | G24: =+F24 -> 0.605
B25: 1Ingresos de S/. 1,200 a S/. 1,799 | C25: 1 | D25: Ingresos de S/. 1,200 a S/. 1,799 | F25: 0.43 | G25: =+F25 -> 0.43
B26: 1Ingresos de S/. 1,800 a S/. 2,599 | C26: 1 | D26: Ingresos de S/. 1,800 a S/. 2,599 | F26: 0.43 | G26: 0.43
B27: 1Ingresos de S/. 2,600 a S/. 3,799 | C27: 1 | D27: Ingresos de S/. 2,600 a S/. 3,799 | F27: 0.385 | G27: 0.385 | I27: Segmento | K27: 1 | L27: 2 | O27: Final
B28: 1Ingresos de S/. 3,800 a S/. 4,999 | C28: 1 | D28: Ingresos de S/. 3,800 a S/. 4,999 | F28: 0.365 | G28: 0.365 | J28: 1 | K28: Ingresos de S/. 700 a S/. 1,199 | L28: Ingresos de S/. 700 a S/. 1,199 | O28: =IF($I$33=3,"Otros",IF(IF($I$33=1,K28,L28)=0,"",IF($I$33=1,K28,L28))) -> Otros
B29: 1Ingresos de S/. 5,000 a S/. 7,499 | C29: 1 | D29: Ingresos de S/. 5,000 a S/. 7,499 | F29: 0.365 | G29: 0.365 | J29: =+J28+1 -> 2 | K29: Ingresos de S/. 1,200 a S/. 1,799 | L29: Ingresos de S/. 1,200 a S/. 1,799 | O29: =IF($I$33=3,"Otros",IF(IF($I$33=1,K29,L29)=0,"",IF($I$33=1,K29,L29))) -> Otros
B30: 1Ingresos de S/. 7,500 a S/. 14,999 | C30: 1 | D30: Ingresos de S/. 7,500 a S/. 14,999 | F30: 0.355 | G30: 0.355 | I30: Otros | J30: =+J29+1 -> 3 | K30: Ingresos de S/. 1,800 a S/. 2,599 | L30: Ingresos de S/. 1,800 a S/. 2,599 | O30: Otros
B31: 1Ingresos de S/. 15,000 a más | C31: 1 | D31: Ingresos de S/. 15,000 a más | F31: 0.34 | G31: 0.34 | J31: =+J30+1 -> 4 | K31: Ingresos de S/. 2,600 a S/. 3,799 | L31: Ingresos de S/. 2,600 a S/. 3,799 | O31: Otros
B32: 1Garantía: Dep. a Plazo y CBME | C32: 1 | D32: =+K36 -> Garantía: Dep. a Plazo y CBME | F32: 0.11 | G32: 0.11 | J32: 5 | K32: Ingresos de S/. 3,800 a S/. 4,999 | L32: Ingresos de S/. 3,800 a S/. 4,999 | O32: Otros
B33: 1Garantía: Fondos Mutuos | C33: 1 | D33: =+K37 -> Garantía: Fondos Mutuos | F33: 0.12 | G33: 0.12 | I33: 3 | J33: 6 | K33: Ingresos de S/. 5,000 a S/. 7,499 | L33: Ingresos de S/. 5,000 a S/. 7,499 | O33: Otros
B34: 1Otros | C34: 1 | D34: =+K38 -> Otros | F34: =Datos!H17 -> 0.72 | G34: 0.72 | J34: 7 | K34: Ingresos de S/. 7,500 a S/. 14,999 | L34: Ingresos de S/. 7,500 a S/. 14,999 | O34: Otros
B35: 2Ingresos de S/. 700 a S/. 1,199 | C35: 2 | D35: Ingresos de S/. 700 a S/. 1,199 | F35: 0.62 | G35: 0.62 | J35: 8 | K35: Ingresos de S/. 15,000 a más | L35: Ingresos de S/. 15,000 a más | O35: Otros
B36: 2Ingresos de S/. 1,200 a S/. 1,799 | C36: 2 | D36: Ingresos de S/. 1,200 a S/. 1,799 | F36: 0.445 | G36: 0.445 | J36: 9 | K36: Garantía: Dep. a Plazo y CBME | L36: Garantía: Dep. a Plazo y CBME | O36: Otros
B37: 2Ingresos de S/. 1,800 a S/. 2,599 | C37: 2 | D37: Ingresos de S/. 1,800 a S/. 2,599 | F37: 0.445 | G37: 0.445 | J37: 10 | K37: Garantía: Fondos Mutuos | L37: Garantía: Fondos Mutuos | O37: Otros
B38: 2Ingresos de S/. 2,600 a S/. 3,799 | C38: 2 | D38: Ingresos de S/. 2,600 a S/. 3,799 | F38: 0.4 | G38: 0.4 | J38: 11 | K38: Otros | L38: Otros | O38: Otros
B39: 2Ingresos de S/. 3,800 a S/. 4,999 | C39: 2 | D39: Ingresos de S/. 3,800 a S/. 4,999 | F39: 0.38 | G39: 0.38 | O39: 11
B40: 2Ingresos de S/. 5,000 a S/. 7,499 | C40: 2 | D40: Ingresos de S/. 5,000 a S/. 7,499 | F40: 0.365 | G40: 0.365
B41: 2Ingresos de S/. 7,500 a S/. 14,999 | C41: 2 | D41: Ingresos de S/. 7,500 a S/. 14,999 | F41: 0.355 | G41: 0.355
B42: 2Ingresos de S/. 15,000 a más | C42: 2 | D42: Ingresos de S/. 15,000 a más | F42: 0.34 | G42: 0.34 | P42: TASA
B43: 2Garantía: Dep. a Plazo y CBME | C43: 2 | D43: Garantía: Dep. a Plazo y CBME | F43: 0.11 | G43: 0.11 | O43: =+VLOOKUP(O39,J28:O38,6,FALSE) -> Otros | P43: =+IF(Varios!$I$33=3,VLOOKUP("Otros",Varios!$D$24:$G$60,3,FALSE),VLOOKUP(Varios!I33&Varios!O43,Varios!B24:G60,IF(Varios!C4=1,5,6),FALSE)) -> 0.72
B44: 2Garantía: Fondos Mutuos | C44: 2 | D44: Garantía: Fondos Mutuos | F44: 0.12 | G44: 0.12
B45: 2Otros | C45: 2 | D45: Otros | F45: =Datos!H17 -> 0.72 | G45: =+F45 -> 0.72
C63: Fecha de Pagos | D63: Día | F63: Plazos | G63: Día | K63: Plazos
C64: 1 | D64: 2 | F64: 1 | G64: 2 | K64: 1 | L64: 0.026 | N64: SI
C65: 2 | D65: 15 | F65: 2 | G65: 3 | K65: 2 | L65: 0.024 | N65: NO
C66: 3 | D66: 28 | F66: 3 | G66: 4 | K66: 3 | L66: 0.0235
C67: 3 | D67: =VLOOKUP(C67,$C$64:$D$66,2,0) -> 28 | F67: 4 | G67: 6 | K67: 4 | L67: 0.023
F68: 5 | G68: 9 | K68: 6 | L68: 0.017
F69: 6 | G69: 12 | K69: 9 | L69: 0.016
F70: 7 | G70: 18 | K70: 12 | L70: 0.014
K71: 18 | L71: 0.011
F72: 6 | G72: =+VLOOKUP(F72,F63:G71,2,0) -> 12
